Cogmind - Beta 17.1 @@@ ROGUE MODE // 2026.09.04 @ 00:16:28 Player: szymekc Result: Heading to fleet! Performance ------------- Evolutions (9) 4500 Regions Visited (27) 5400 Robots Destroyed (1154) 5770 Value Destroyed (70294) 70294 Prototype IDs (393) 7860 Alien Tech Used (16) 3200 Bonus (127763) 127763 TOTAL SCORE: 224787 Bonus ------- Triggered High Security 1500 High Alert Combat Kills 40734 Follower Combat Kills 2780 Prayed to X0-1V1 5000 Major X0-1V1 Interference 21750 Subatomizer Sterilization 3000 Aligned with FarCom 300 Met Zhirov 300 Found Hidden Lab 3000 Used Core Reset Matrix 3000 Scanned by Researcher 1000 Pursued by Intercept 3000 Recovered Sigix Corpse 2000 Destroyed MAIN.C Guards 500 Met MAIN.C 5000 Destroyed MAIN.C Shell 5000 Destroyed MAIN.C 10000 Met Architect 300 Destroyed A8 300 Destroyed A6 400 Destroyed A4 700 Destroyed A3 800 Destroyed A2 1000 Destroyed Architect 15000 Win 3000 Friendly Fire -1601 Cogmind --------- Core Integrity 495/1425 Matter 100/150 Energy 1496/1520 System Corruption 1% Temperature Cool (12) +ITN Movement Treading (135) Location To Fleet Rendezvous Parts ------- > --- POWER (3) -------- Zero-point Reactor Zero-point Reactor Zero-point Reactor > --- PROPULSION (6) --- Experimental Biometal Heavy Treads Experimental Biometal Heavy Treads Experimental Biometal Medium Treads Experimental Biometal Medium Treads > --- UTILITY (13) ----- Experimental Power Amplifier Huge Storage Unit Experimental Optical Array Experimental Targeting Computer Experimental Targeting Computer Experimental Targeting Computer Experimental Core Analyzer Improved Armor Integrity Analyzer Advanced Particle Accelerator Experimental Weapon Cycler Centrium Linked Plating Graphene Brace Advanced Force Field > --- WEAPON (4) ------- Long-range Gatling Laser Heavy Quantum Rifle Heavy Quantum Rifle Heavy Quantum Rifle > --- INVENTORY (25) --- Experimental Energy Well (600) Experimental Weapon Cycler Experimental Powered Armor Heavy Regenerative Plating Experimental EM Shield Microwarp Drive Enhanced Nova Cannon Enhanced Nova Cannon Enhanced Nova Cannon Potential Cannon Cooled Nova Cannon Heavy Scimitar of Distortion Sigix Broadsword Sigix Corpse Peak State ------------ > --- POWER ------------ Zero-point Reactor Vortex Chain Reactor > --- PROPULSION ------- Experimental Biometal Heavy Treads Experimental Biometal Heavy Treads Experimental Biometal Medium Treads Experimental Biometal Medium Treads > --- UTILITY ---------- Huge Storage Unit Experimental Optical Array Experimental Targeting Computer Experimental Targeting Computer Experimental Targeting Computer Experimental Core Analyzer Improved Armor Integrity Analyzer Experimental Weapon Cycler Experimental Powered Armor Advanced Force Field Microwarp Drive > --- WEAPON ----------- Heavy Quantum Rifle Heavy Quantum Rifle Heavy Quantum Rifle Heavy Quantum Rifle > --- INVENTORY -------- Zero-point Reactor Zero-point Reactor Experimental Biometal Heavy Treads Experimental Power Amplifier Experimental Energy Well Advanced Particle Accelerator Experimental Weapon Cycler Experimental Phase Shifter Heavy Regenerative Plating Graphene Brace Thermal Barrier Experimental EM Shield Advanced Force Field Transdimensional Reconstructor Enhanced Nova Cannon Enhanced Nova Cannon Enhanced Nova Cannon Potential Cannon Cooled Nova Cannon Sigix Broadsword [Rating: 280] Favorites ----------- Power Improved Quantum Reactor Engine Heavy Ion Engine Power Core Light Fission Core Reactor Improved Quantum Reactor Propulsion Light Treads Treads Light Treads Leg Improved VSS Leg Wheel Overtuned Scrapsphere Hover Unit Combat Airjet Flight Unit Biomechanical Wings Utility Experimental Targeting Computer Device Experimental Weapon Cycler Storage Huge Storage Unit Processor Experimental Targeting Computer Hackware Quantum Router Protection Centrium Heavy Armor Plating Artifact Microwarp Drive Weapon Heavy Quantum Rifle Energy Gun Heavy Quantum Rifle Energy Cannon Enhanced Nova Cannon Ballistic Gun Helical Railgun Ballistic Cannon Enhanced Hardcell Cannon Launcher Rocket Array Special Weapon Mining Laser Impact Weapon Powered Hammer Slashing Weapon Sigix Broadsword Piercing Weapon Lance Build | -11 -10 -10 -9 -9 -9 -8 -8 -7 -7 -7 -7 -5 -5 -5 -5 -4 -4 -4 -4 -3 -3 -2 -2 -2 -1 -1 -1 ------- Run | Yrd Mat Min Mat Min Exi Min Mat Fac Sto Rec Scr Fac Upp Upp Zhi Pro Fac Arm Lab Res Tes Res Qua Sec Acc Com Ac0 Slots Evolved 18 | . . . 2 . . . 2 2 . . . 4 . . . . 2 . . 2 . 2 . . 2 . . Power 2 | . . . . . . . . . . . . 1 . . . . 1 . . . . . . . . . . Propulsion 3 | . . . 1 . . . 1 . . . . . . . . . . . . 1 . . . . . . . Utility 11 | . . . 1 . . . 1 2 . . . 2 . . . . 1 . . 1 . 1 . . 2 . . Weapon 2 | . . . . . . . . . . . . 1 . . . . . . . . . 1 . . . . . Parts Attached 444 | 7 7 11 18 1 2 . 22 20 16 9 24 10 6 . 15 2 27 34 13 8 25 18 15 12 56 54 12 Power 59 | 1 1 5 2 . 1 . 1 1 1 . 3 2 2 . 1 . 1 8 . 1 1 3 4 2 8 8 2 Engine 14 | 1 1 3 2 . 1 . 1 1 1 . 1 1 1 . . . . . . . . . . . . . . Core 5 | . . 2 . . . . . . . . 1 . 1 . . . . 1 . . . . . . . . . Reactor 40 | . . . . . . . . . . . 1 1 . . 1 . 1 7 . 1 1 3 4 2 8 8 2 Propulsion 111 | 2 1 2 6 . . . 10 6 8 6 12 1 . . 5 1 2 8 2 1 1 4 3 1 18 11 . Treads 63 | 2 1 2 2 . . . 5 6 7 1 . . . . . . . 3 2 1 1 3 3 1 12 11 . Leg 42 | . . . 4 . . . 5 . . 5 9 . . . 5 1 2 5 . . . . . . 6 . . Wheel 1 | . . . . . . . . . . . 1 . . . . . . . . . . . . . . . . Hover 4 | . . . . . . . . . 1 . 2 . . . . . . . . . . 1 . . . . . Flight 1 | . . . . . . . . . . . . 1 . . . . . . . . . . . . . . . Utility 170 | 2 3 . 8 . 1 . 6 6 2 2 4 5 4 . 6 1 16 7 8 5 13 5 5 8 21 25 7 Device 96 | 2 1 . 2 . . . 3 1 1 . 3 3 3 . 3 . 10 7 3 4 10 2 3 3 15 12 5 Storage 13 | . 2 . 2 . . . 1 . . . . 1 . . 1 . . . 1 . 1 1 . . 1 2 . Processor 22 | . . . . . . . 2 4 . . . . . . . 1 4 . . 1 . 1 . 2 1 5 1 Hackware 3 | . . . . . . . . . . . . . . . . . . . 2 . 1 . . . . . . Protection 35 | . . . 4 . 1 . . 1 1 2 1 1 1 . 2 . 2 . 2 . 1 1 2 2 4 6 1 Artifact 1 | . . . . . . . . . . . . . . . . . . . . . . . . 1 . . . Weapon 104 | 2 2 4 2 1 . . 5 7 5 1 5 2 . . 3 . 8 11 3 1 10 6 3 1 9 10 3 Energy Gun 16 | . . . . . . . 2 1 1 1 . . . . . . 2 . 2 . 2 . . 1 . 1 3 Energy Cannon 29 | . . . 1 1 . . . 4 . . . . . . 1 . 3 4 1 1 2 3 1 . 3 4 . Ballistic Gun 19 | 2 1 1 . . . . 2 . 1 . 1 1 . . . . . 3 . . 3 1 . . 2 1 . Ballistic Cannon 12 | . . . . . . . 1 1 . . . . . . 1 . . 3 . . 1 2 . . 2 1 . Launcher 15 | . . 2 1 . . . . . 3 . 2 . . . . . 1 1 . . 1 . . . 2 2 . Special Weapon 5 | . 1 . . . . . . 1 . . 1 . . . 1 . . . . . . . . . . 1 . Impact Weapon 3 | . . . . . . . . . . . 1 . . . . . 1 . . . . . 1 . . . . Slashing Weapon 5 | . . 1 . . . . . . . . . 1 . . . . 1 . . . 1 . 1 . . . . Piercing Weapon . | . . . . . . . . . . . . . . . . . . . . . . . . . . . . Special Melee Weapon . | . . . . . . . . . . . . . . . . . . . . . . . . . . . . Unidentified Prototypes 108 | . 1 . 1 . . . . 2 5 . 5 4 . . 8 . 11 4 9 2 14 4 9 2 10 13 4 Corrupted Parts 3 | . . . . . . . . . . . . . . . 1 . . . . . . . . . . 2 . System Corruption 15 | . . . . . . . . . . . . . . . 3 . . . . . . . . . . 12 . Parts Lost 54 | . . 1 2 . 2 . 5 1 . . 19 . . . . . 2 2 . 1 1 1 . 1 6 5 5 Power 6 | . . . . . 1 . . . . . 3 . . . . . . . . . . . . . 1 . 1 Propulsion 15 | . . . 1 . . . 3 1 . . 9 . . . . . . . . . . 1 . . . . . Utility 25 | . . . 1 . 1 . 2 . . . 3 . . . . . 2 1 . 1 1 . . 1 4 5 3 Weapon 8 | . . 1 . . . . . . . . 4 . . . . . . 1 . . . . . . 1 . 1 Highest Loss Streak 11 | . . 1 1 . 2 . 3 1 . . 11 . . . . . 1 1 . 1 1 1 . 1 2 1 3 To Critical Strikes 1 | . . . . . . . . . . . 1 . . . . . . . . . . . . . . . . Average Backups 18 | . 10 14 16 19 19 17 19 23 23 21 16 17 14 14 17 20 19 18 15 19 17 18 21 20 19 18 17 Power 1 | . 1 1 . 1 . . . 1 1 1 . 1 2 2 2 3 1 . . 1 1 1 1 1 . . 1 Propulsion 2 | . 2 2 4 4 4 4 4 7 9 8 5 1 . . 1 3 2 2 1 1 . . . . 1 2 . Utility 6 | . 2 4 3 5 4 4 4 5 5 3 3 9 8 8 8 9 8 7 7 9 7 8 9 8 6 4 7 Weapon 6 | . 3 5 7 9 9 9 9 9 6 6 5 3 2 2 2 3 6 8 5 5 6 7 8 7 8 8 6 Tool/Special . | . . . . . . . . . . . . . . . . . . . . . . . . . . . . Unused Backups 98 | . 1 2 8 . 1 . 5 6 8 3 2 8 2 . 3 1 3 6 2 2 1 1 1 6 14 8 4 Power 11 | . . . 1 . . . . 2 1 . . 1 . . 1 . 1 2 . . . . . 2 . . . Propulsion 15 | . . . 3 . . . 1 . 3 . . 1 . . . . . . . . . . . 3 1 3 . Utility 25 | . 1 . 1 . . . 1 . . 1 . 4 2 . 1 . 1 . 1 1 1 . . 1 6 1 2 Weapon 43 | . . 2 2 . . . 3 4 4 2 2 2 . . . 1 1 4 1 1 . 1 1 . 6 4 2 Tool/Special 4 | . . . 1 . 1 . . . . . . . . . 1 . . . . . . . . . 1 . . Average Slot Usage (%) 87 | . 100 100 96 100 99 100 95 98 96 92 85 81 85 88 93 99 97 89 84 89 85 87 79 72 81 80 89 Engine 3 | . 14 8 10 10 9 10 8 7 7 7 5 2 5 5 5 5 4 . . . . . . . . . . Reactor 6 | . . . . . . . . . . . . 5 2 . 4 5 9 13 15 13 12 12 11 8 10 10 9 Treads 13 | . 28 28 8 . . . 11 35 35 16 . . . . . . . 1 16 17 18 15 12 12 9 11 15 Leg 8 | . . . 29 40 40 40 29 . . 18 29 27 27 27 27 27 24 19 . . . . . . 3 . . Device 14 | . 14 14 9 10 10 10 12 5 6 7 8 13 13 16 18 22 19 16 15 21 17 15 11 11 17 16 17 Storage 5 | . 13 14 10 10 10 10 8 7 7 7 7 5 5 5 5 5 4 4 3 4 4 4 3 4 3 5 3 Processor 14 | . . . . . . . 9 26 18 14 14 11 5 5 5 8 11 14 15 13 18 17 19 20 19 17 23 Protection 3 | . . . 7 10 9 10 1 . 7 7 4 . 5 5 8 7 4 3 3 4 4 4 3 3 3 3 4 Energy Gun 1 | . . . . . . . 1 . . . . . . . . . . . . . . 3 1 1 2 2 14 Energy Cannon 5 | . . . 9 14 15 16 10 12 13 14 8 . . . . 3 3 10 15 13 4 7 7 3 . 6 . Ballistic Gun 3 | . 26 27 1 . . . . . . . . 5 11 11 8 6 7 . . . 3 . . . 2 . . Slashing Weapon 1 | . . . 8 5 5 3 . . . . . 2 5 5 5 5 3 2 . . . . 3 4 2 1 . Peak Build Rating 280 | 9 20 24 42 41 42 41 48 57 68 69 92 124 127 126 140 136 167 184 171 192 189 203 262 264 270 274 280 Average Rating 163 | 4 10 21 34 41 41 40 41 49 63 67 64 113 125 125 129 134 155 164 158 183 181 197 220 245 256 256 261 On Entrance 114 | . 9 20 21 41 41 40 41 41 57 67 68 92 117 125 126 136 135 158 160 167 180 170 202 234 246 256 259 Avg Prop Armor Cover (%) 5 | . . . . . . . . . . . 7 . . . . . . 4 . . 8 1 . . 4 . 6 Naked Turns . | . . . . . . . . . . . . . . . . . . . . . . . . . . . . Heaviest Build 237 | 10 30 30 62 64 64 64 102 112 121 121 82 86 83 68 99 102 144 153 196 164 160 199 222 204 224 237 202 Greatest Support 270 | 40 40 40 68 68 68 68 100 114 140 132 90 75 75 75 133 133 143 190 190 214 194 224 250 270 270 250 250 Greatest Overweight (x) 4 | . . . . . . . 1 1 . . 4 1 1 . . . 1 1 1 . 1 1 . . 2 1 1 Average Overweight (x) . | . . . . . . . . . . . . . . . . . . . . . . . . . . . . Largest Inventory Capacity 25 | 5 15 15 20 20 20 20 25 25 25 25 20 20 15 15 20 20 20 20 20 20 20 25 25 25 25 25 25 Average Capacity 21 | 5 14 15 17 20 20 20 20 25 25 22 20 17 15 15 18 20 20 20 16 20 20 22 25 25 25 25 25 Most Carried 25 | 1 15 15 20 20 20 19 21 25 25 25 20 20 15 15 20 20 20 20 20 20 20 25 25 25 25 25 25 Average Carried 21 | . 10 14 16 20 19 17 19 24 24 22 17 17 14 14 17 19 19 19 15 19 19 21 24 24 24 24 23 Final Capacity 25 | 5 15 15 20 20 20 20 25 25 25 20 20 15 15 15 20 20 20 20 20 20 20 25 25 25 25 25 25 Final Carried 25 | 1 15 15 20 20 17 19 21 25 24 20 20 14 14 15 20 20 20 20 20 20 18 25 25 24 25 25 19 Scrap Suit Usage (%) 1 | . . . . . . . . . . . 26 . . . . . . . . . . . . . . . . Class Distribution -------------------- 27% | Mutant 16% | Scavenger-Mutant 15% | Scavenger-Gunner 14% | Alien-Mutant 9% | Scavenger-Assassin 8% | Scavenger-Tank Dominant Class ---------------- Mutant | -10/Materials Mutant | -10/Mines Mutant | -9/Materials Mutant | -9/Mines Mutant | -9/Exiles Mutant | -8/Mines Mutant | -8/Materials Scavenger-Mutant | -7/Factory Mutant | -7/Storage Mutant | -7/Recycling Mutant | -7/Scraptown Scavenger-Assassin | -5/Factory Scavenger-Assassin | -5/Upper Caves Scavenger-Assassin | -5/Upper Caves Scavenger-Mutant | -5/Zhirov Scavenger-Mutant | -4/Proximity Caves Scavenger-Mutant | -4/Factory Scavenger-Assassin | -4/Armory Scavenger-Tank | -4/Lab Scavenger-Tank | -3/Research Scavenger-Tank | -3/Testing Scavenger-Gunner | -2/Research Scavenger-Assassin | -2/Quarantine Alien-Mutant | -2/Section 7 Scavenger-Mutant | -1/Access Scavenger-Gunner | -1/Command Scavenger-Gunner | -1/Access_0 Resources | -11 -10 -10 -9 -9 -9 -8 -8 -7 -7 -7 -7 -5 -5 -5 -5 -4 -4 -4 -4 -3 -3 -2 -2 -2 -1 -1 -1 ----------- Run | Yrd Mat Min Mat Min Exi Min Mat Fac Sto Rec Scr Fac Upp Upp Zhi Pro Fac Arm Lab Res Tes Res Qua Sec Acc Com Ac0 Matter Collected 23910 | 354 514 711 788 10 . 147 697 532 418 770 1584 534 434 431 428 40 889 1600 89 560 2370 413 1381 1936 3672 1976 632 Remotely . | . . . . . . . . . . . . . . . . . . . . . . . . . . . . Salvage Created 61984 | 139 679 629 980 273 . 330 2565 1415 1693 1060 2442 534 213 273 549 . 1757 2109 89 1648 3387 1416 2989 7657 10646 12118 4394 Parts 2554 | 13 53 51 58 16 . 29 113 62 86 50 102 14 6 14 37 . 62 108 8 68 138 72 105 261 365 429 234 Haulers Intercepted 27 | . 2 . 3 . . . 5 3 4 . . 1 . . . . 4 . . . 2 2 . . 1 . . Recyclers Shooed 10 | . . . 2 1 . . . . . . . 2 . . . . . . . 1 . . . 1 2 1 . Parts Field Recycled . | . . . . . . . . . . . . . . . . . . . . . . . . . . . . Retrieved Matter . | . . . . . . . . . . . . . . . . . . . . . . . . . . . . Parts Self-Destructed 24 | . . . . . . . . . . . 2 . . 11 11 . . . . . . . . . . . . Prevented . | . . . . . . . . . . . . . . . . . . . . . . . . . . . . Parts Restored . | . . . . . . . . . . . . . . . . . . . . . . . . . . . . Kills | -11 -10 -10 -9 -9 -9 -8 -8 -7 -7 -7 -7 -5 -5 -5 -5 -4 -4 -4 -4 -3 -3 -2 -2 -2 -1 -1 -1 ------- Run | Yrd Mat Min Mat Min Exi Min Mat Fac Sto Rec Scr Fac Upp Upp Zhi Pro Fac Arm Lab Res Tes Res Qua Sec Acc Com Ac0 Combat Hostiles Destroyed 925 | . 16 26 16 5 . 14 41 19 25 10 60 3 . 4 . . 22 30 1 18 36 17 30 119 179 186 48 Melee 15 | . . . 5 . . . 2 . . . . 3 . . . . 2 2 . . . . . 1 . . . Guns 252 | . 16 12 . . . . 2 . . . . . . 4 . . 8 3 . . 11 4 14 20 82 32 44 Cannons 305 | . . . 6 5 . 3 35 18 21 10 1 . . . . . 5 18 1 18 21 12 7 36 30 55 3 AOE 283 | . . 14 5 . . 11 . . 3 . 58 . . . . . 5 3 . . . . 4 44 56 80 . Classes Destroyed 39 | 2 6 1 3 1 . . 2 1 1 2 8 . 1 1 . . . 1 . . 3 . 2 3 1 . . Worker 40 | . 3 1 2 1 . 2 2 2 4 . . 3 . . . . 1 . . 1 2 1 1 . 3 11 . Builder 28 | . 1 . . . . 1 3 4 . 1 . . . . . . . . . 2 1 2 4 3 6 . . Tunneler 10 | 5 . 1 . 1 . . . . . . . 1 . . . . 1 . . . . . . . 1 . . Hauler 27 | . 2 . 3 . . . 5 3 4 . . 1 . . . . 4 . . . 2 2 . . 1 . . Recycler 35 | 1 1 . 5 . . 1 4 3 1 5 . 2 . . . . 1 . . 2 2 . . 1 2 4 . Carrier 16 | . . . . . . . . . . . . . . . . . . . . . . . 1 7 4 4 . Mechanic 32 | . . . 1 1 . . 1 . 1 . . . . . . . . . . . . . 2 5 11 10 . Operator 10 | . . . 1 . . . . 1 2 . . . . . . . . 3 . . 1 1 1 . . . . Watcher 21 | . 1 . 1 . . . 1 1 1 . . . . . . . . 4 . 1 2 1 2 2 1 3 . Swarmer 69 | . 9 4 9 . . 10 . 4 4 . . 1 . . . . 4 . . . . 3 . . 6 11 4 Saboteur 33 | . . . . . . . . . . . . . . . . . . 2 . . 1 . . 7 14 9 . Grunt 280 | . 7 14 4 4 . 3 32 11 8 3 . 2 . 3 . . 9 2 . 9 13 3 7 52 51 43 . Brawler 33 | . . . . 1 . . 1 . . 2 . . . . . . 1 . . . . . 1 6 8 13 . Duelist 47 | . . . . . . . 3 . . . . . . . . . 1 3 . . . . . 9 17 14 . Protector 18 | . . . . . . . . . . . . . . . . . . . . . . . . 4 5 9 . Researcher 8 | . . . . . . . . . . . . . . . . . . . . . 1 . 3 4 . . . Sentry 51 | . . . 3 . . 1 4 3 11 2 . . . 1 . . 3 3 . 2 4 2 3 . 9 . . Demolisher 5 | . . . . . . . . . . 1 . . . . . . . 1 . . . . . . . 3 . Specialist 8 | . . . . . . . . . . 1 . . . . . . . 5 . . . . . . . 1 1 Hunter 40 | . . . . . . . . . 1 . . . . . . . . 2 . . 2 . 4 3 15 13 . Programmer 107 | . . . . . . . . 1 1 1 . . . . . . 3 10 . 3 7 4 6 19 19 33 . Heavy 4 | . . . . . . . 1 . . . . . . . . . 1 . . . . . . . 1 1 . Q-Series 4 | . . . . . . . . . . . . . . . . . . . . . 1 1 1 1 . . . Behemoth 2 | . . . . . . . . . . . . . . . . . . . . . . . . . 1 1 . Armor Guard 2 | . . . . . . . . . . . . . . . . . . 2 . . . . . . . . . M Guard 2 | . . . . . . . . . . . . . . . . . . . . . . . . . . 2 . Enhanced Grunt 31 | . . . . . . . . . . . . . . . 2 . . . . . . . . . . . 29 Enhanced Sentry 2 | . . . . . . . . . . . . . . . . . . . . . . . . . . . 2 Enhanced Hunter 8 | . . . . . . . . . . . . . . . . . . . . . . . . . . . 8 Tracker 15 | . . . . . . . . . . . . . . . . . . . . 2 3 2 2 4 2 . . Combat Programmer 16 | . . . . . . . . . . . . . . . . . . . . 2 3 2 2 4 1 2 . Investigator 4 | . . . . . . . . . . . . . . . . . . . . . . . . 1 1 2 . Striker 32 | . . . . . . . . . . . . . . . . . . . . . . . . 6 14 12 . Executioner 36 | . . . . . . . . . . . . . . . . . . . . . . . . 4 17 15 . Alpha 7 4 | . . . . . . . . . . . . . . . . . . . . . 1 . 1 . . 2 . Fortress 1 | . . . . . . . . . . . . . . . . . . . . . . . 1 . . . . Protovariant L 1 | . . . . . . . . . . . . . . . . . . . . . 1 . . . . . . Protovariant X 1 | . . . . . . . . . . . . . . . . . . . . . 1 . . . . . . Bolteater 7 | . . . . . . . . . . . 7 . . . . . . . . . . . . . . . . Federalist 3 | . . . . . . . . . . . 3 . . . . . . . . . . . . . . . . Explorer 6 | . . . . . . . . . . . 6 . . . . . . . . . . . . . . . . Ranger 5 | . . . . . . . . . . . 5 . . . . . . . . . . . . . . . . Guru 7 | . . . . . . . . . . . 7 . . . . . . . . . . . . . . . . Scrapper 16 | . . . . . . . . . . . 16 . . . . . . . . . . . . . . . . Elite 12 | . . . . . . . . . . . 12 . . . . . . . . . . . . . . . . Zionite 1 | . . . . . . . . . . . 1 . . . . . . . . . . . . . . . . Decomposer 1 | . . . . . . . . . . . . . 1 . . . . . . . . . . . . . . Samaritan 3 | . . . . . . . . . . . . . 3 . . . . . . . . . . . . . . Tinkerer 1 | . . . . . . . . . . . . . . 1 . . . . . . . . . . . . . Assembled 8 | . . 8 . . . . . . . . . . . . . . . . . . . . . . . . . Thug 4 | . . . . . . . . . . . 2 . . . . . . . . . . . 2 . . . . Savage 1 | . . . . . . . . . . . 1 . . . . . . . . . . . . . . . . Best Kill Streak 59 | 6 6 4 4 3 . 8 10 7 7 5 32 10 . 2 . . 5 11 1 5 10 12 13 23 44 59 6 Combat Bots Only 53 | . 4 4 3 2 . 7 7 5 5 5 31 2 . 2 . . 5 11 1 5 10 10 11 21 40 53 6 Max Kills in Single Turn 6 | 2 1 3 2 1 . 4 2 2 3 1 4 1 1 1 1 . 5 2 1 2 2 2 3 5 5 6 4 Gunslinging 3 | . . . . . . . . . . . . . . . . . . . . . . . . . . . 3 Exploded 6 | . . 3 2 . . 4 . . 3 . 4 . . . . . 5 2 . . . . 1 4 4 6 . Melee 1 | . . . 1 . . . 1 . . . . 1 . . . . 1 1 . . . . . 1 . . . Uniques/NPCs Destroyed 11 | . . . . . . . . . . . 2 . . . . . . . 1 . . . . . . 2 6 Triborg (-7/Scraptown) Optimus (-7/Scraptown) A5 (-4/Lab) MAIN.C Shell (-1/Command) MAIN.C (-1/Command) A8 (-1/Access_0) A6 (-1/Access_0) A4 (-1/Access_0) Architect (-1/Access_0) A2 (-1/Access_0) A3 (-1/Access_0) Combat | -11 -10 -10 -9 -9 -9 -8 -8 -7 -7 -7 -7 -5 -5 -5 -5 -4 -4 -4 -4 -3 -3 -2 -2 -2 -1 -1 -1 -------- Run | Yrd Mat Min Mat Min Exi Min Mat Fac Sto Rec Scr Fac Upp Upp Zhi Pro Fac Arm Lab Res Tes Res Qua Sec Acc Com Ac0 Hostile Shots Fired 4132 | . 72 92 58 15 17 37 150 86 164 58 267 9 . 4 . . 162 269 16 99 225 42 126 365 565 683 551 Missed 1335 | . 20 29 17 4 4 13 46 31 65 17 87 3 . 2 . . 71 97 2 18 58 15 44 139 183 174 196 Intercepted 6 | . . . . . . . . . . . . . . . . . . . . . . . . . . 6 . Hits 2797 | . 52 63 41 11 13 24 104 55 99 41 180 6 . 2 . . 91 172 14 81 167 27 82 226 382 509 355 Melee 80 | . . . . . . . 4 . . . 28 . . . . . 5 3 . . 6 . . 9 4 3 18 Projectile 2717 | . 52 63 41 11 13 24 100 55 99 41 152 6 . 2 . . 86 169 14 81 161 27 82 217 378 506 337 AOE 18 | . . . . . . . . . . 3 . . . . . . . 4 . . . . . 2 . 9 . Critical Strikes 138 | . 1 1 . . . 2 3 3 . 1 13 1 . . . . 5 6 . 4 5 2 8 17 11 32 23 Actively Blocked 66 | . . . . . . . . . . . . . . . . . . 4 . . . . 1 5 8 27 21 Part Disruptions 13 | . . . . . . . . . . . . . . . . . . 2 . . 2 . . 1 2 6 . Damage Taken 43340 | . 488 840 385 117 370 298 1593 744 961 589 4119 113 . 44 . . 1248 3299 357 1172 2321 721 1683 2602 6110 7169 5997 Core 4181 | . 87 111 51 . 103 17 199 99 91 32 682 59 . . . . 53 75 . 9 42 72 35 355 563 567 879 Absorbed by Shields 16622 | . . . . . . . 152 . . 126 . . . . . . 725 . . 769 1116 . 27 2193 512 5703 5299 Reduced by Siege Mode 1285 | . . . . . . . . . . . . . . . . . . . 52 187 104 60 102 218 18 458 86 Redirected to Shielding 160 | . . . . . . . . . . . . . . . . . . . . . . . . . . . 160 Ignored by Resistances 7965 | . . . . . . . . . . . 40 . . . . . 135 . . . . . . 1242 3486 2582 480 Regen/Repaired (Parts) 5834 | . . . . . . . 109 . . . . . . . . . . . . . . . 529 415 1589 1291 1901 Core Remaining (%) 66 | 100 . 44 . . . 70 46 . . . 8 . . . . 92 . . 100 . 95 . . 79 . . 34 Volleys Fired 2247 | 21 60 55 41 18 . 16 134 61 63 39 55 6 4 14 10 6 55 96 13 59 187 46 92 217 304 365 210 Largest 6 | 2 2 2 1 2 . 2 2 2 2 2 2 1 1 2 1 1 3 3 3 3 2 4 6 2 2 4 4 Hottest 516 | 40 100 40 68 136 . 136 136 145 145 148 148 38 38 76 90 90 233 280 360 360 150 408 516 200 220 420 350 Shots Fired 4339 | 42 114 97 41 35 . 24 233 120 126 79 57 6 4 28 10 6 116 190 31 139 287 116 154 273 378 815 818 Gun 2198 | 42 108 84 . . . . 24 . . . 5 6 4 28 2 . 76 40 . . 134 24 44 125 245 422 785 Cannon 2025 | . . . 38 35 . 18 209 120 125 79 5 . . . 5 6 40 146 31 139 153 92 110 141 120 380 33 Launcher 105 | . . 13 3 . . 6 . . 1 . 45 . . . . . . 4 . . . . . 7 13 13 . Special 11 | . 6 . . . . . . . . . 2 . . . 3 . . . . . . . . . . . . Kinetic 902 | 42 108 84 . . . . 46 . . . 5 6 4 28 2 . 76 65 . . 134 18 43 44 157 40 . Thermal 2996 | . 6 . 38 35 . 18 187 120 125 79 5 . . . 5 6 39 98 31 134 153 87 105 189 173 545 818 Explosive 106 | . . 13 3 . . 6 . . 1 . 46 . . . . . . 4 . . . . . 7 13 13 . Electromagnetic 53 | . . . . . . . . . . . . . . . . . 1 23 . 5 . 11 6 7 . . . Slashing 278 | . . . . . . . . . . . . . . . . . . . . . . . . 26 35 217 . Robot Hit Streak 95 | 5 7 9 4 6 . 9 26 22 33 20 25 9 . 4 5 . 27 15 7 26 59 22 28 57 49 95 95 Robot Miss Streak 9 | 9 2 4 5 4 . 2 4 2 1 3 3 1 . 5 . . 3 3 2 4 2 1 2 2 4 3 2 Penetration Max 4 | . . . . . . . 1 . . . . 1 . 2 . . 2 1 . . . . 3 1 4 1 . Secondary Targets 30 | . 2 3 . . . . . . . . . . . . . . . . . . . . . 2 7 2 14 Max Gunslinging Chain 3 | . 1 1 . . . . . . . . . . . . . . . . . . . . . 1 1 1 3 Shots Hit Robots 3094 | 19 66 59 40 22 1 17 178 91 89 55 40 18 9 10 16 . 78 114 18 79 200 62 102 213 329 563 606 Core Hits 2413 | 9 33 51 28 8 . 24 91 40 52 23 259 8 2 8 7 . 46 61 11 39 123 39 65 203 465 416 302 Critical Kills 168 | . . 1 . . . . 2 1 2 . . . . 1 . . 1 5 . . 5 1 18 30 82 18 1 Critical Parts Destroyed 164 | . . . . . . . . . . . . 2 . . . . 7 4 . . 1 . 10 23 111 6 . Critical Strikes 377 | . . 1 . . . . 8 2 2 . . 2 . 1 . . 8 17 . . 7 3 33 54 206 32 1 Meltdown 53 | . . . . . . . 2 1 2 . . . . . . . . 3 . . 4 1 4 15 5 15 1 Destroy 292 | . . 1 . . . . . . . . . . . 1 . . 5 10 . . 3 . 27 38 197 10 . Blast 12 | . . . . . . . 6 . . . . . . . . . . 3 . . . 1 2 . . . . Corrupt 2 | . . . . . . . . . . . . . . . . . . 1 . . . 1 . . . . . Smash 5 | . . . . . . . . . . . . 2 . . . . 3 . . . . . . . . . . Sever 13 | . . . . . . . . 1 . . . . . . . . . . . . . . . 1 4 7 . Melee Attacks 250 | . . 1 28 . 1 4 2 5 . . 33 21 12 1 20 4 35 23 . . . . 12 26 16 6 . Kinetic 1 | . . . . . . . . . . . . . . . . . . . . . . . 1 . . . . Impact 68 | . . . . . . . . . . . 33 19 . . . . 16 . . . . . . . . . . Slashing 178 | . . 1 28 . 1 4 2 5 . . . 2 12 1 20 4 19 20 . . . . 11 26 16 6 . Piercing 3 | . . . . . . . . . . . . . . . . . . 3 . . . . . . . . . Sneak Attacks 55 | . . . 8 . 1 3 . 1 . . . 10 7 1 4 . 6 1 . . . . 4 8 1 . . Combat Hostiles 1 | . . . . . . . . . . . . 1 . . . . . . . . . . . . . . . Follow-up Attacks 2 | . . . . . . . . . . . . . . . . . 2 . . . . . . . . . . Damage Inflicted 215248 | 201 854 1462 1604 481 62 1133 4899 2546 2833 1460 8389 1254 758 502 1237 . 4330 4835 562 4131 8479 3299 6928 29224 35226 55608 32951 Guns 58987 | 201 813 664 . . . . 351 . . . . 115 . 393 . . 1517 242 . . 4750 450 780 1950 5580 11147 30034 Cannons 75924 | . . . 412 452 . 247 4525 2336 2414 1440 95 . . . . . 627 3905 562 4121 3729 2849 4023 11421 10298 20195 2273 Explosions 69531 | . . 787 305 . . 698 . . 276 . 7381 . . . . . 1089 463 . . . . 1340 13837 18485 24226 644 Melee 10288 | . . . 887 . 62 188 . 94 . . 913 1139 758 109 1237 . 1074 193 . . . . 785 2016 833 . . Ramming 518 | . 41 11 . 29 . . 23 116 143 20 . . . . . . 23 32 . 10 . . . . 30 40 . Kinetic 17644 | 201 813 664 . . . . 1925 . . . . 115 . 393 . . 1517 1051 . . 4750 595 645 471 3027 1477 . Thermal 145908 | . . . 412 452 . 247 2951 2336 2414 1440 95 . . . . . 1716 2473 562 3928 3729 2302 5257 22361 21790 38492 32951 Explosive 29663 | . . 787 305 . . 698 . . 276 . 7381 . . . . . . 463 . . . . . 3503 8260 7990 . Electromagnetic 1748 | . . . . . . . . . . . . . . . . . . 623 . 193 . 402 241 289 . . . Impact 2553 | . . . . . . . . . . . 913 965 . . . . 675 . . . . . . . . . . Slashing 16747 | . . . 887 . 62 188 . 94 . . . 174 758 109 1237 . 399 193 . . . . 785 2600 2119 7142 . Piercing . | . . . . . . . . . . . . . . . . . . . . . . . . . . . . Entropic 467 | . . . . . . . . . . . . . . . . . . . . . . . . . . 467 . Highest Corruption 22 | . . . . . 1 1 . 2 2 . 17 17 17 . 3 3 1 10 15 14 22 4 9 3 6 16 1 Average Corruption 6 | . . . . . 1 1 . 1 2 . 7 17 17 . 3 3 1 6 14 6 13 3 3 2 5 7 1 Corruption Purged 18 | . . . . . . . . . . . . . . . . . . . . . . . . . . 18 . Corruption Blocked . | . . . . . . . . . . . . . . . . . . . . . . . . . . . . Effects 355 | . . . . . . 3 . . 6 . 10 5 20 . 5 2 4 33 25 10 60 5 24 15 44 72 12 Message Errors 69 | . . . . . . . . . 1 . 2 1 7 . 1 1 1 8 6 1 8 3 4 1 6 14 4 Matter Fused 70 | . . . . . . 1 . . 2 . 4 . 3 . 1 1 . 4 3 4 9 . 8 3 7 17 3 Heat Flow Errors 35 | . . . . . . . . . . . 1 1 . . 2 . 1 2 3 2 6 1 3 4 5 4 . Energy Discharges 46 | . . . . . . 1 . . 1 . 1 . 4 . . . 1 3 4 . 9 . 2 1 8 10 1 Parts Rejected 10 | . . . . . . . . . . . . . . . . . . 1 1 . 4 . . . 2 2 . Parts Fused 3 | . . . . . . . . . . . . 1 . . . . . 1 . . . . . . 1 . . Data Loss (minor) 57 | . . . . . . . . . 1 . 1 1 4 . . . . 5 6 2 10 1 5 3 7 10 1 Data Loss (major) 17 | . . . . . . 1 . . . . 1 1 1 . . . . 2 . . 2 . . 1 2 5 1 Misfires 21 | . . . . . . . . . 1 . . . . . . . 1 1 2 1 3 . 1 1 4 4 2 Alerts 9 | . . . . . . . . . . . . . 1 . 1 . . 2 . . . . 1 1 1 2 . Misdirections 2 | . . . . . . . . . . . . . . . . . . . . . 1 . . . . 1 . Weapon Failures 16 | . . . . . . . . . . . . . . . . . . 4 . . 8 . . . 1 3 . Overload Shots 5 | . . . . . . . . . . . . . . . . . . . . . . . . . . 5 . Overflow Damage 12614 | . . 25 98 . . 86 115 106 95 24 308 379 352 . 217 . 343 145 . 36 67 27 826 2889 2356 3975 145 Projectiles 5397 | . . . 1 . . 6 115 76 23 24 39 . . . . . . 106 . 36 67 27 392 1342 1144 1911 88 Explosions 4807 | . . 25 25 . . 46 . . 67 . 92 . . . . . 99 4 . . . . 145 1008 1175 2064 57 Melee 2410 | . . . 72 . . 34 . 30 5 . 177 379 352 . 217 . 244 35 . . . . 289 539 37 . . Knockbacks 28 | . . . . . . . 11 . . . 2 1 . . . . 2 . . . . 7 4 . . 1 . Impact 5 | . . . . . . . . . . . 1 1 . . . . 2 . . . . . . . . 1 . Kinetic 14 | . . . . . . . 6 . . . . . . . . . . . . . . 5 3 . . . . Secondary 9 | . . . . . . . 5 . . . 1 . . . . . . . . . . 2 1 . . . . Self-Inflicted Damage 787 | . . 46 10 . . . . . . . 637 . . . . . . . . . . . . . 47 47 . Shots 31 | . . 1 1 . . . . . . . 26 . . . . . . . . . . . . . 1 2 . Rammed 27 | . 4 2 . . . . 2 7 7 . . . . . . . . . . 1 . . . . 2 2 . Targets Rammed 46 | . 7 3 . 2 . . 6 8 9 3 . . . . . . 2 1 . 1 . . . . 2 2 . Kicked 8 | . . . . 2 . . 2 . . 1 . . . . . . 2 1 . . . . . . . . . Crushed 11 | . 3 1 . . . . 2 1 2 2 . . . . . . . . . . . . . . . . . Highest Temperature 407 | . 82 20 140 51 . 90 17 54 51 181 272 255 . . 283 23 273 339 407 200 261 247 180 211 208 208 188 Average Temperature 86 | . 25 5 45 16 . 46 4 22 21 51 95 140 . . 104 23 110 90 145 103 67 65 38 41 101 128 58 Received Heat Transfer 4869 | . 129 366 69 66 . 153 714 363 381 142 549 72 . . . . 270 582 . 66 119 72 36 250 226 172 72 Thermoelectric Energy+ 55614 | . . . . . . . . . . . . . . . . . . . . . . . . 26 51646 3924 18 Effects 13 | . . . . . . . . . . . . . . . . . . . 6 . . . . . 7 . . Shutdowns 3 | . . . . . . . . . . . . . . . . . . . 3 . . . . . . . . Energy Bleed 1 | . . . . . . . . . . . . . . . . . . . . . . . . . 1 . . Interference 8 | . . . . . . . . . . . . . . . . . . . 2 . . . . . 6 . . Matter Decay 1 | . . . . . . . . . . . . . . . . . . . 1 . . . . . . . . Siege Activations 39 | . . . . . . . . . . . . . . . . . . . 1 4 4 3 4 5 2 11 5 Total Turns 1961 | . . . . . . . . . . . . . . . . . . . 25 74 87 64 94 663 7 884 63 Longest Duration 565 | . . . . . . . . . . . . . . . . . . . 25 40 41 28 26 565 6 503 20 Martial Activations . | . . . . . . . . . . . . . . . . . . . . . . . . . . . . Shielding Activations . | . . . . . . . . . . . . . . . . . . . . . . . . . . . . Robots Disrupted 1 | . . . . . . . . . . . . . . . . . . . . . . . . 1 . . . Combat Hostiles . | . . . . . . . . . . . . . . . . . . . . . . . . . . . . Robots Corrupted 13 | . . . . . . . . 1 1 . 4 1 . . . . 3 2 . 1 . . . . . . . Combat Hostiles 3 | . . . . . . . . . . . . . . . . . 2 1 . . . . . . . . . Parts Fried 38 | . . . . . . . . . 1 . 11 4 . . . . 3 11 . 3 . . 2 2 . . 1 Impact Corruptions 28 | . . . . . . . 1 1 1 . 9 7 . . . . 8 1 . . . . . . . . . Robots Melted 71 | . . . 1 . . . 2 1 2 . . . . . . . . 3 . . 4 1 4 20 13 19 1 Combat Hostiles 63 | . . . . . . . 2 1 1 . . . . . . . . 3 . . 4 1 4 18 11 17 1 Parts Melted 207 | . . . 3 . . . 8 10 14 3 1 . . . . . . 7 . 4 12 2 12 37 32 45 17 Heat Transferred 107863 | . . . 740 814 . 444 5213 3690 3913 2244 187 . . . . . 1081 2071 499 3182 3145 1924 3663 15477 15577 29173 14826 Parts Sabotaged 5 | . . . . . . . . . . . . . . . . . . 1 . . 3 . . . 1 . . Parts Stolen . | . . . . . . . . . . . . . . . . . . . . . . . . . . . . Parts Stripped 18 | . . . . . . . . . . . . . . . . . . . . . . . 18 . . . . Power Chain Reactions . | . . . . . . . . . . . . . . . . . . . . . . . . . . . . Alert | -11 -10 -10 -9 -9 -9 -8 -8 -7 -7 -7 -7 -5 -5 -5 -5 -4 -4 -4 -4 -3 -3 -2 -2 -2 -1 -1 -1 ------- Run | Yrd Mat Min Mat Min Exi Min Mat Fac Sto Rec Scr Fac Upp Upp Zhi Pro Fac Arm Lab Res Tes Res Qua Sec Acc Com Ac0 Maximum Alert Level 5 | . . . . . . 1 3 3 2 1 . . . . . . 3 3 . 1 3 2 4 5 5 5 . Low Security (%) 25 | 100 100 100 100 100 . 86 9 . . 1 . 100 . . . . 39 . . 78 70 . . . . . . Level 1 15 | . . . . . . 14 24 58 40 98 . . . . . . 22 28 . 21 10 54 32 . . . . Level 2 12 | . . . . . . . 36 31 59 . . . . . . . 25 37 . . 12 45 46 5 . . . Level 3 5 | . . . . . . . 30 10 . . . . . . . . 11 34 . . 6 . 15 7 . . . Level 4 2 | . . . . . . . . . . . . . . . . . . . . . . . 5 23 . . . Level 5 7 | . . . . . . . . . . . . . . . . . . . . . . . . . 2 46 . High Security 31 | . . . . . . . . . . . . . . . . . . . . . . . . 62 97 53 . Max Security . | . . . . . . . . . . . . . . . . . . . . . . . . . . . . Sterilizations 4 | . . . . . . . . 1 . . . . . . . . 1 . . . . . . 1 1 . . Peak Influence 10931 | 15 141 184 131 62 . 242 961 741 671 337 . 145 . . . . 879 877 . 239 830 695 1161 5120 8499 10931 . Initial 5439 | . . 26 59 30 . . 36 445 327 255 . . . . . . 150 413 . . 112 466 387 648 3072 5439 . Average 2774 | 3 66 68 72 16 . 137 535 427 453 252 . 66 . . . . 337 575 . 90 246 438 582 3071 7587 9108 . Influence Increases 30764 | 30 474 712 514 202 . 372 1529 932 835 592 30 223 5 95 15 . 1457 1038 . 710 1475 619 1292 5034 5547 6006 1026 Destroy 0b10 Robot/C 17700 | . 320 360 320 120 . 280 900 600 500 320 . 60 . 80 . . 520 620 . 380 740 340 680 3060 3580 3840 80 Destroy 0b10 Robot/NC 1200 | 30 40 10 65 15 . 20 80 60 65 20 30 35 5 . 15 . 55 35 . 30 50 35 50 90 155 210 . Destroy Leader 2902 | . 56 40 78 20 . 30 202 126 160 10 . 2 . . . . 118 138 . 102 148 86 124 464 506 492 . Allied During Kill 1393 | . . . 4 2 . . 15 88 . 13 . . . . . . 21 26 . 6 . . . 772 37 409 . Successful Hack 128 | . 22 . 18 . . . . 5 11 25 . 14 . . . . 13 . . 13 . 7 . . . . . Select Force Hacks 150 | . . . . . . . . . . 150 . . . . . . . . . . . . . . . . . Disable Machine 1215 | . . . . . . 15 30 . 45 15 . . . . . . 90 105 . 45 150 15 90 255 60 120 180 Anti-Garrison Action 200 | . . . . . . . . . . . . . . . . . 200 . . . . . . . . . . Destroy Structure 3774 | . 6 58 14 . . 27 19 8 39 24 . 12 . . . . 260 114 . 104 106 136 189 153 1179 560 766 Advance Influence 150 | . . . . . . . . . . . . . . . . . 150 . . . . . . . . . . Partial Spotted 15 | . . . . . . . . . . . . . . . . . . . . 15 . . . . . . . Lose Combat Pursuer 765 | . 30 . 15 45 . . 45 45 15 15 . . . 15 . . 30 . . 15 45 . 15 30 30 375 . Active Sensor Use 100 | . . . . . . . . . . . . 100 . . . . . . . . . . . . . . . Miscellaneous 1072 | . . 244 . . . . 238 . . . . . . . . . . . . . 236 . 144 210 . . . Influence Decreases 29888 | 30 405 629 587 275 6 278 642 1193 899 917 361 140 88 95 15 . 612 1085 798 509 846 760 828 1067 2168 3310 11345 Entered New Map 20734 | . . 43 93 49 6 . 58 536 393 401 331 . 31 . . . . 432 798 . 89 364 302 505 2048 3060 11195 Time Decay 7610 | 30 405 576 434 206 . 278 474 607 506 416 28 140 57 95 15 . 422 553 . 267 577 386 526 452 60 100 . Lost Part 332 | . . 10 20 . . . 50 10 . . 2 . . . . . 20 20 . 10 10 10 . 10 60 50 50 Lost Ally 739 | . . . 40 20 . . 60 40 . 100 . . . . . . 20 80 . 59 20 . . 100 . 100 100 Purge Threat 473 | . . . . . . . . . . . . . . . . . 150 . . 173 150 . . . . . . Squads Dispatched 185 | . 1 1 1 1 . . 12 10 3 1 . 4 . . . . 9 4 . 3 12 6 10 35 34 38 . Investigation 10 | . . . 1 . . . 1 1 1 . . 3 . . . . 1 . . . . 1 1 . . . . Extermination 23 | . . . . . . . . 2 2 . . . . . . . 2 3 . 1 4 3 2 3 . 1 . Reinforcement 30 | . 1 1 . . . . 6 3 . . . 1 . . . . 3 1 . 1 4 . 2 6 . 1 . Assault 104 | . . . . 1 . . 2 1 . 1 . . . . . . 2 . . . 2 1 1 24 33 36 . Garrison 10 | . . . . . . . 3 3 . . . . . . . . 1 . . . . . 3 . . . . Intercept 8 | . . . . . . . . . . . . . . . . . . . . 1 2 1 1 2 1 . . Searches Triggered . | . . . . . . . . . . . . . . . . . . . . . . . . . . . . Construction Impeded 2 | . . . . . . . . . . . . . . . . . 1 . . . . . . 1 . . . Haulers Reinforced 5 | . . . . . . . . 1 . . . . . . . . 2 . . 1 1 . . . . . . Active Scanning Responses 1 | . . . . . . . . . . . . 1 . . . . . . . . . . . . . . . Cargo Convoy Interrupts 1 | . . . . . . . . 1 . . . . . . . . . . . . . . . . . . . Stealth | -11 -10 -10 -9 -9 -9 -8 -8 -7 -7 -7 -7 -5 -5 -5 -5 -4 -4 -4 -4 -3 -3 -2 -2 -2 -1 -1 -1 --------- Run | Yrd Mat Min Mat Min Exi Min Mat Fac Sto Rec Scr Fac Upp Upp Zhi Pro Fac Arm Lab Res Tes Res Qua Sec Acc Com Ac0 Distress Signals 42 | . 1 . 3 . . . 6 1 5 . . 1 . . . . 3 4 . 1 1 1 1 1 . 13 . Communications Jammed 73 | . . . . . . . . . . . . . . . . . . . . . . 18 11 . 44 . . Distress Signals 72 | . . . . . . . . . . . . . . . . . . . . . . 18 11 . 43 . . Times Spotted 1310 | . 25 31 27 9 5 15 59 30 34 19 89 2 . 4 . 1 41 50 1 22 51 25 37 160 209 267 97 Peak Tracking Total 27 | . 5 4 6 4 11 5 6 5 5 6 27 1 . 3 . 1 8 8 1 5 9 5 7 15 20 25 5 Tactical Retreats 36 | . 1 1 1 2 1 . 3 3 1 1 2 . . 1 . . 2 . . 1 1 . 1 2 2 10 . Traps | -11 -10 -10 -9 -9 -9 -8 -8 -7 -7 -7 -7 -5 -5 -5 -5 -4 -4 -4 -4 -3 -3 -2 -2 -2 -1 -1 -1 ------- Run | Yrd Mat Min Mat Min Exi Min Mat Fac Sto Rec Scr Fac Upp Upp Zhi Pro Fac Arm Lab Res Tes Res Qua Sec Acc Com Ac0 Traps Triggered 17 | . . 1 1 . . . . 3 3 . . . . . . . . 3 . . . . 1 . 5 . . Indirectly . | . . . . . . . . . . . . . . . . . . . . . . . . . . . . Trap Hack Attempts . | . . . . . . . . . . . . . . . . . . . . . . . . . . . . Triggered . | . . . . . . . . . . . . . . . . . . . . . . . . . . . . Disarmed . | . . . . . . . . . . . . . . . . . . . . . . . . . . . . Reprogrammed . | . . . . . . . . . . . . . . . . . . . . . . . . . . . . Reused 1 | . . . . . . . . . . . 1 . . . . . . . . . . . . . . . . Traps Extracted . | . . . . . . . . . . . . . . . . . . . . . . . . . . . . Installed 1 | . . . . . . . . . . . 1 . . . . . . . . . . . . . . . . Triggered . | . . . . . . . . . . . . . . . . . . . . . . . . . . . . Most Traps Carried 2 | . . . . . . . . . . . 2 1 . . . . . . . . . . . . . . . Machines | -11 -10 -10 -9 -9 -9 -8 -8 -7 -7 -7 -7 -5 -5 -5 -5 -4 -4 -4 -4 -3 -3 -2 -2 -2 -1 -1 -1 ---------- Run | Yrd Mat Min Mat Min Exi Min Mat Fac Sto Rec Scr Fac Upp Upp Zhi Pro Fac Arm Lab Res Tes Res Qua Sec Acc Com Ac0 Machines Disabled 117 | . . . . . . 1 2 . 3 1 9 . . . 3 . 6 7 5 3 11 2 6 23 11 8 16 Max in Single Turn 5 | . . . . . . 1 1 . 1 1 3 . . . 1 . 5 1 1 1 1 1 1 3 2 1 1 Garrison Access 9 | . . . . . . . . 1 1 . . . . . . . 2 . . . . . . . 5 . . Energy Cycler 3 | . . . . . . . . . . . . . . . . . . 1 . . . . . . 2 . . Machines Repaired . | . . . . . . . . . . . . . . . . . . . . . . . . . . . . Machines Dismantled . | . . . . . . . . . . . . . . . . . . . . . . . . . . . . Machines Sabotaged . | . . . . . . . . . . . . . . . . . . . . . . . . . . . . Overloaded Fab Kills . | . . . . . . . . . . . . . . . . . . . . . . . . . . . . Hacking | -11 -10 -10 -9 -9 -9 -8 -8 -7 -7 -7 -7 -5 -5 -5 -5 -4 -4 -4 -4 -3 -3 -2 -2 -2 -1 -1 -1 --------- Run | Yrd Mat Min Mat Min Exi Min Mat Fac Sto Rec Scr Fac Upp Upp Zhi Pro Fac Arm Lab Res Tes Res Qua Sec Acc Com Ac0 Machines Accessed 84 | . 8 1 9 . 2 . 4 6 9 12 . 4 . 2 4 . 6 . . 2 4 4 4 2 . . 1 Terminals 57 | . 7 . 9 . . . 3 4 7 6 . 4 . 1 . . 4 . . 2 3 2 3 2 . . . Fabricators . | . . . . . . . . . . . . . . . . . . . . . . . . . . . . Repair Stations 2 | . . . . . . . 1 . . . . . . . . . . . . . . 1 . . . . . Recycling Units 8 | . 1 . . . . . . . 1 6 . . . . . . . . . . . . . . . . . Scanalyzers 1 | . . . . . . . . . . . . . . . . . 1 . . . . . . . . . . Garrison Access 7 | . . . . . . . . 2 1 . . . . . . . 1 . . . 1 1 1 . . . . Total Hacks 195 | . 23 1 15 . 4 . 12 10 14 26 . 11 . 2 17 . 12 . . 7 7 8 6 3 . . 17 Successful 94 | . 12 1 6 . 4 . 3 2 6 10 . 1 . 2 17 . 6 . . 4 1 1 . 1 . . 17 Failed 101 | . 11 . 9 . . . 9 8 8 16 . 10 . . . . 6 . . 3 6 7 6 2 . . . Catastrophic 30 | . 1 . 4 . . . 2 3 2 3 . 2 . . . . 3 . . 1 3 2 3 1 . . . Database Lockouts . | . . . . . . . . . . . . . . . . . . . . . . . . . . . . Manual 69 | . 14 . 5 . 1 . 2 6 4 20 . . . . . . 3 . 1 5 3 1 4 . . . . Terminals 127 | . 21 . 15 . . . 10 7 12 17 . 11 . 1 . . 9 . . 7 4 6 4 3 . . . Fabricators . | . . . . . . . . . . . . . . . . . . . . . . . . . . . . Repair Stations 3 | . . . . . . . 2 . . . . . . . . . . . . . . 1 . . . . . Recycling Units 12 | . 2 . . . . . . . 1 9 . . . . . . . . . . . . . . . . . Scanalyzers 2 | . . . . . . . . . . . . . . . . . 2 . . . . . . . . . . Garrison Access 11 | . . . . . . . . 3 1 . . . . . . . 1 . . . 3 1 2 . . . . Terminal Hacks 75 | . 6 1 6 . 4 . 2 1 4 3 . 1 . 2 17 . 4 . . 4 1 1 . 1 . . 17 Record 26 | . . . . . 3 . . . . . . . . 1 5 . . . . . . . . . . . 17 Part Schematic 5 | . . . . . . . . . . 1 . . . . 4 . . . . . . . . . . . . Robot Analysis 6 | . 1 . . . . . . . . 1 . . . . 4 . . . . . . . . . . . . Prototype ID Bank 10 | . 2 . . . . . 1 . 1 1 . . . . 4 . 1 . . . . . . . . . . Open Door 6 | . . 1 . . . . . . 3 . . . . 1 . . . . . . . . . 1 . . . Branch Access Points 4 | . . . 1 . . . . . . . . . . . . . 1 . . 1 . 1 . . . . . Unreport Threat 4 | . . . . . . . . . . . . . . . . . 1 . . 2 1 . . . . . . Locate Traps 5 | . 2 . 3 . . . . . . . . . . . . . . . . . . . . . . . . Hauler Manifests 6 | . 1 . . . . . 1 1 . . . 1 . . . . 1 . . 1 . . . . . . . Zone Layout 2 | . . . 2 . . . . . . . . . . . . . . . . . . . . . . . . Proto ID Catalog 1 | . . . . . 1 . . . . . . . . . . . . . . . . . . . . . . Fabricator Hacks . | . . . . . . . . . . . . . . . . . . . . . . . . . . . . Repair Station Hacks . | . . . . . . . . . . . . . . . . . . . . . . . . . . . . Recycling Unit Hacks . | . . . . . . . . . . . . . . . . . . . . . . . . . . . . Scanalyzer 1 | . . . . . . . . . . . . . . . . . 1 . . . . . . . . . . Retrieve Study 1 | . . . . . . . . . . . . . . . . . 1 . . . . . . . . . . Garrison Access Hacks 2 | . . . . . . . . 1 1 . . . . . . . . . . . . . . . . . . Seal Access 2 | . . . . . . . . 1 1 . . . . . . . . . . . . . . . . . . Unauthorized Hacks 16 | . 6 . . . . . 1 . 1 7 . . . . . . 1 . . . . . . . . . . Terminals 9 | . 6 . . . . . . . 1 2 . . . . . . . . . . . . . . . . . Botnet 4 | . 1 . . . . . . . 1 2 . . . . . . . . . . . . . . . . . Skim 5 | . 5 . . . . . . . . . . . . . . . . . . . . . . . . . . Fabricators . | . . . . . . . . . . . . . . . . . . . . . . . . . . . . Repair Stations 1 | . . . . . . . 1 . . . . . . . . . . . . . . . . . . . . Patch 1 | . . . . . . . 1 . . . . . . . . . . . . . . . . . . . . Recycling Units 5 | . . . . . . . . . . 5 . . . . . . . . . . . . . . . . . Tunnel 5 | . . . . . . . . . . 5 . . . . . . . . . . . . . . . . . Scanalyzers . | . . . . . . . . . . . . . . . . . . . . . . . . . . . . Garrison Access 1 | . . . . . . . . . . . . . . . . . 1 . . . . . . . . . . Jam 1 | . . . . . . . . . . . . . . . . . 1 . . . . . . . . . . Data Cores Recovered 5 | . . . 1 . . . . 1 1 . . . . . . . . 2 . . . . . . . . . Used 1 | . . . 1 . . . . . . . . . . . . . . . . . . . . . . . . Hacking Detections 63 | . 8 . 6 . . . 3 5 8 8 . 4 . 1 . . 5 . . 2 4 4 4 1 . . . Full Trace Events 3 | . . . . . . . . . . 1 . 1 . . . . . . . . . 1 . . . . . Feedback Events . | . . . . . . . . . . . . . . . . . . . . . . . . . . . . Feedback Blocked . | . . . . . . . . . . . . . . . . . . . . . . . . . . . . Robot Schematics Acquired 4 | . . . . . . . . . . . . . . . . . . . . . 1 . . 3 . . . Robots Built . | . . . . . . . . . . . . . . . . . . . . . . . . . . . . Authchips . | . . . . . . . . . . . . . . . . . . . . . . . . . . . . Time . | . . . . . . . . . . . . . . . . . . . . . . . . . . . . Total Robot Build Rating . | . . . . . . . . . . . . . . . . . . . . . . . . . . . . Part Schematics Acquired 17 | . . . . . . . . . . 1 . . . . 4 . . . . . 1 . 7 4 . . . Parts Built . | . . . . . . . . . . . . . . . . . . . . . . . . . . . . Authchips . | . . . . . . . . . . . . . . . . . . . . . . . . . . . . Time . | . . . . . . . . . . . . . . . . . . . . . . . . . . . . Total Part Build Rating . | . . . . . . . . . . . . . . . . . . . . . . . . . . . . Part Studies Acquired 1 | . . . . . . . . . . . . . . . . . 1 . . . . . . . . . . Parts Repaired . | . . . . . . . . . . . . . . . . . . . . . . . . . . . . Time . | . . . . . . . . . . . . . . . . . . . . . . . . . . . . Parts Recycled . | . . . . . . . . . . . . . . . . . . . . . . . . . . . . Recycled Matter . | . . . . . . . . . . . . . . . . . . . . . . . . . . . . Retrieved Matter . | . . . . . . . . . . . . . . . . . . . . . . . . . . . . Retrieved Components . | . . . . . . . . . . . . . . . . . . . . . . . . . . . . Parts Scanalyzed . | . . . . . . . . . . . . . . . . . . . . . . . . . . . . Part Schematics Acquired . | . . . . . . . . . . . . . . . . . . . . . . . . . . . . Parts Damaged . | . . . . . . . . . . . . . . . . . . . . . . . . . . . . Bothacking | -11 -10 -10 -9 -9 -9 -8 -8 -7 -7 -7 -7 -5 -5 -5 -5 -4 -4 -4 -4 -3 -3 -2 -2 -2 -1 -1 -1 ------------ Run | Yrd Mat Min Mat Min Exi Min Mat Fac Sto Rec Scr Fac Upp Upp Zhi Pro Fac Arm Lab Res Tes Res Qua Sec Acc Com Ac0 Used RIF Installer . | . . . . . . . . . . . . . . . . . . . . . . . . . . . . Robots Hacked . | . . . . . . . . . . . . . . . . . . . . . . . . . . . . Non-combat . | . . . . . . . . . . . . . . . . . . . . . . . . . . . . Combat . | . . . . . . . . . . . . . . . . . . . . . . . . . . . . Robot Hacks Applied . | . . . . . . . . . . . . . . . . . . . . . . . . . . . . Relay Couplers Released 14 | . . . . . . . . . . . . . . . . . . . . 3 . 3 3 . 5 . . Machine Destruction 5 | . . . . . . . . . . . . . . . . . . . . . . . . . 5 . . Programmers 9 | . . . . . . . . . . . . . . . . . . . . 3 . 3 3 . . . . Fabnet Peak Effective % . | . . . . . . . . . . . . . . . . . . . . . . . . . . . . Robots Rewired 13 | . . . . . . . . . . 11 . . . . . . . . . . 2 . . . . . . Allies Hacked 1 | . . . . . . . . . . . . . . . . . . . . . . . . . . 1 . Hacks Repelled . | . . . . . . . . . . . . . . . . . . . . . . . . . . . . Allies | -11 -10 -10 -9 -9 -9 -8 -8 -7 -7 -7 -7 -5 -5 -5 -5 -4 -4 -4 -4 -3 -3 -2 -2 -2 -1 -1 -1 -------- Run | Yrd Mat Min Mat Min Exi Min Mat Fac Sto Rec Scr Fac Upp Upp Zhi Pro Fac Arm Lab Res Tes Res Qua Sec Acc Com Ac0 Total Allies 59 | . . . 4 1 . . 3 3 . 11 1 . . . . . 1 4 . 4 2 . . 9 5 4 7 Largest Group 11 | . . . 4 1 . . 3 3 . 11 1 . . . . . 1 4 . 4 1 . . 3 4 4 3 Highest-Rated Group 464 | . . . 40 31 . . 72 96 . 211 464 . . . . . 219 184 . 236 121 . . 220 236 369 267 Highest-Rated Ally 464 | . . . 10 31 . . 24 32 . 40 464 . . . . . 219 46 . 59 121 . . 219 219 219 96 Total Orders 12 | . . . . . . . . 1 . 1 . . . . . . . . . . 1 . . 4 4 1 . STAY 8 | . . . . . . . . 1 . 1 . . . . . . . . . . 1 . . 2 2 1 . FOLLOW 2 | . . . . . . . . . . . . . . . . . . . . . . . . 2 . . . RETURN 2 | . . . . . . . . . . . . . . . . . . . . . . . . . 2 . . Ally Attacks 394 | . . . . 13 . . 9 31 . 14 34 . . . . . 11 15 . 7 6 . . 81 2 42 129 Total Damage 14400 | . . . . 169 . . 316 1037 . 431 2003 . . . . . 901 306 . 371 269 . . 4216 42 3300 1039 Kills 86 | . . . . 1 . . 4 9 . 3 13 . . . . . 8 1 . 1 . . . 29 . 13 4 Allies Corrupted 4 | . . . . . . . . . . 1 . . . . . . . 1 . . . . . . 1 1 . Allies Melted . | . . . . . . . . . . . . . . . . . . . . . . . . . . . . X0-1V1 Amusement Gains 826 | . 10 30 10 . 60 . 20 5 5 . 95 5 . . 65 . 70 35 32 20 64 27 30 56 67 90 30 Average Entertainment 60 | . 6 22 12 12 . 46 32 31 15 8 70 58 43 31 . 48 33 82 . 48 76 87 75 90 80 95 74 Good Acts 260 | . . 13 13 4 . 3 8 13 10 9 7 1 6 6 . 1 14 11 . 8 9 4 12 20 34 37 17 Bad Acts 143 | . 1 10 1 . . 4 9 9 1 5 7 2 . 6 . . 2 8 . . 9 4 9 4 13 19 20 Intel | -11 -10 -10 -9 -9 -9 -8 -8 -7 -7 -7 -7 -5 -5 -5 -5 -4 -4 -4 -4 -3 -3 -2 -2 -2 -1 -1 -1 ------- Run | Yrd Mat Min Mat Min Exi Min Mat Fac Sto Rec Scr Fac Upp Upp Zhi Pro Fac Arm Lab Res Tes Res Qua Sec Acc Com Ac0 Active Infowar (turns) 30824 | 12 929 . . . . . . 1742 . . 56 299 980 721 470 284 1027 1600 558 909 1769 917 1476 3046 5885 5256 2888 Optics 27121 | . . . . . . . . 1615 . . . . . . . 175 1027 1600 558 909 1769 917 1476 3046 5885 5256 2888 Sensors 5060 | . . . . . . . . . . . . . . . . . 143 1183 2 589 867 692 986 158 440 . . A.S.S. 2220 | . . . . . . . . . . . 56 299 980 721 164 . . . . . . . . . . . . IFF 891 | . . . . . . . . . . . . . . . 306 277 308 . . . . . . . . . . Terrain 16 | 8 8 . . . . . . . . . . . . . . . . . . . . . . . . . . Structural 3536 | . . . . . . . . . . . . . . . . . 181 952 . 464 332 561 925 121 . . . Seismic 941 | 12 929 . . . . . . . . . . . . . . . . . . . . . . . . . . T.N.C. 317 | . . . . . . . . 315 . . . . . . . . 2 . . . . . . . . . . Cloaking 3 | . . . . . . . . . . . . . . . . . . 3 . . . . . . . . . Jamming 1971 | . . . . . . . . . . . . 13 . . . . 130 . . . 189 448 565 77 549 . . Robot Analysis Total 6 | . 1 . . . . . . . . 1 . . . . 4 . . . . . . . . . . . . Derelict Logs Recovered 5 | . . 2 . 1 . . . . . . . . . 2 . . . . . . . . . . . . . Drone Launches 7 | . . . . . . . . . . . . . . . . . . 1 . . . . . 2 1 3 . Drone Recoveries 6 | . . . . . . . . . . . . . . . . . . 1 . . . . . 1 2 2 . Exploration | -11 -10 -10 -9 -9 -9 -8 -8 -7 -7 -7 -7 -5 -5 -5 -5 -4 -4 -4 -4 -3 -3 -2 -2 -2 -1 -1 -1 ------------- Run | Yrd Mat Min Mat Min Exi Min Mat Fac Sto Rec Scr Fac Upp Upp Zhi Pro Fac Arm Lab Res Tes Res Qua Sec Acc Com Ac0 Turns Passed 41527 | 138 1187 2241 1076 727 298 600 1212 1970 1363 1017 1548 299 980 721 517 284 1027 1600 558 909 1769 917 1476 3046 5903 5256 2888 Spaces Moved 20423 | 46 595 710 620 510 212 410 495 1007 640 589 948 187 790 666 328 219 572 900 263 389 707 386 669 1234 2527 2070 1734 Core 4 | 4 . . . . . . . . . . . . . . . . . . . . . . . . . . . Treads 12664 | 42 595 710 132 . . . 115 1007 640 195 . . . . . . . 108 263 389 707 386 669 1125 2017 1953 1611 Legs 7381 | . . . 488 510 212 410 380 . . 394 923 187 790 666 328 219 572 792 . . . . . . 510 . . Wheels . | . . . . . . . . . . . . . . . . . . . . . . . . . . . . Hover 25 | . . . . . . . . . . . 25 . . . . . . . . . . . . . . . . Flight . | . . . . . . . . . . . . . . . . . . . . . . . . . . . . Fastest Speed 50 | 50 160 160 130 130 130 130 122 162 160 120 90 90 90 90 90 108 114 114 160 165 167 165 160 160 145 135 135 Average Speed 148 | 150 160 160 136 130 130 130 136 166 162 133 128 101 112 90 103 111 114 127 172 165 171 176 161 160 195 146 137 Slowest Speed 450 | 160 160 160 160 130 130 130 242 242 164 162 450 180 180 90 114 114 188 250 246 167 249 250 165 160 317 233 215 Overloaded Moves 10 | . . . . . . . . . . . 10 . . . . . . . . . . . . . . . . Propulsion Burnouts . | . . . . . . . . . . . . . . . . . . . . . . . . . . . . Robots Hopped . | . . . . . . . . . . . . . . . . . . . . . . . . . . . . Potential Cave-ins 8 | . . . . . . . . . . . 3 . . . . 1 . . . . . . . . . 2 2 Cave-ins Triggered . | . . . . . . . . . . . . . . . . . . . . . . . . . . . . Teleports 6 | . . . . . . . . . . . . . . . . . . 1 . . . . . . 1 1 3 Microwarps 18 | . . . . . . . . . . . . . . . . . . . . . . . . 6 . 6 6 Exploration Rate (%) 64 | 3 97 97 76 94 59 87 53 30 91 98 77 7 89 75 81 52 30 57 90 13 72 16 76 60 80 53 86 Regions Visited 27 Branch Regions 18 Pre-discovered Areas 14 | . 1 2 . 1 1 . . . 1 5 . . . . 3 . . . . . . . . . . . . Known Exits Taken 18 | . . . 1 . . 1 . 1 . . 1 1 1 1 . 1 1 1 1 1 1 1 1 1 1 1 . Unknown Exits Taken 9 | 1 1 1 . 1 1 . 1 . 1 1 . . . . 1 . . . . . . . . . . . . Scrap Searched 12 | . . 1 . 1 . 1 . . . . 2 . 2 4 . 1 . . . . . . . . . . . Spaces Dug 223 | . 3 1 2 . . . 2 3 5 2 13 2 3 . . 4 27 16 . 11 23 16 13 9 14 26 28 Terrain Destroyed 2113 | . 6 91 13 . . 28 11 6 34 24 354 5 5 14 5 10 128 62 . 39 52 45 75 44 555 313 194 Melee 74 | . . 1 2 . . . 2 3 . . 10 2 3 . . 4 14 15 . . . . 2 3 8 5 . Projectile 709 | . 6 . . . . . 9 3 17 20 8 3 2 14 5 6 68 29 . 39 52 30 31 32 37 130 168 AOE 1319 | . . 90 11 . . 28 . . 17 4 336 . . . . . 46 18 . . . 15 39 7 507 175 26 Terrain Rammed . | . . . . . . . . . . . . . . . . . . . . . . . . . . . . Walls Destroyed . | . . . . . . . . . . . . . . . . . . . . . . . . . . . . Machines Disabled . | . . . . . . . . . . . . . . . . . . . . . . . . . . . . Actions | -11 -10 -10 -9 -9 -9 -8 -8 -7 -7 -7 -7 -5 -5 -5 -5 -4 -4 -4 -4 -3 -3 -2 -2 -2 -1 -1 -1 --------- Run | Yrd Mat Min Mat Min Exi Min Mat Fac Sto Rec Scr Fac Upp Upp Zhi Pro Fac Arm Lab Res Tes Res Qua Sec Acc Com Ac0 Total 28656 | 74 702 1716 770 538 233 442 773 1173 840 740 1113 260 857 768 457 247 812 1209 350 587 1183 563 947 2141 3223 3969 1969 Wait 3819 | . 8 916 22 6 15 1 77 19 64 2 8 12 41 87 26 4 54 27 16 80 170 56 66 596 111 1285 50 Move 20065 | 45 594 709 619 509 211 409 495 1006 639 588 947 186 789 665 327 218 571 899 262 388 706 385 668 1130 2526 1958 1616 Hop . | . . . . . . . . . . . . . . . . . . . . . . . . . . . . Pick Up 424 | 1 19 5 21 1 1 2 17 22 18 8 24 8 2 1 16 2 18 26 18 12 11 12 18 26 48 52 15 Fast Attach 209 | 7 . . 2 . . . 4 4 1 . 7 4 1 . 7 3 6 18 12 2 14 9 9 18 34 39 8 Attach 200 | . . 1 5 . 2 . 6 3 1 2 15 3 1 . 3 . 6 7 2 3 5 6 14 25 26 42 22 Detach 129 | . . . 1 . . . 2 1 2 . 3 4 . . 3 . 3 2 2 . 3 7 6 20 16 43 11 Swap 649 | . 8 18 14 1 1 10 16 22 22 10 9 4 4 . 33 5 47 66 13 29 47 30 35 44 67 73 21 Drop 499 | . 6 8 17 1 2 . 15 22 21 13 11 13 3 . 12 5 17 44 12 13 18 12 27 37 73 81 16 Fire 2247 | 21 60 55 41 18 . 16 134 61 63 39 55 6 4 14 10 6 55 96 13 59 187 46 92 217 304 365 210 Melee 247 | . . 1 28 . 1 4 2 5 . . 33 20 12 1 20 4 33 23 . . . . 12 26 16 6 . Ram . | . . . . . . . . . . . . . . . . . . . . . . . . . . . . Kick 8 | . . . . 2 . . 2 . . 1 . . . . . . 2 1 . . . . . . . . . Crush 37 | . 7 3 . . . . 3 8 9 2 . . . . . . . . . 1 . . . . 2 2 . Escape Stasis 20 | . . . . . . . . . . . . . . . . . . . . . . . . 2 . 18 . Rewire 102 | . . . . . . . . . . 75 . . . . . . . . . . 22 . . . . 5 . Trap 1 | . . . . . . . . . . . 1 . . . . . . . . . . . . . . . . Miscellaneous . | . . . . . . . . . . . . . . . . . . . . . . . . . . . . Route ------- -11/Scrapyard -10/Materials (discovered 6 exits: *Mat x3 / *Min x2 / *Sub) -10/Mines (discovered 3 exits: *Mat x2 / Sub) -9/Materials (discovered 5 exits: *Mat x3 / *Min x2) -9/Mines (discovered 3 exits: *Mat x2 / *Exi) -9/Exiles (discovered 2 exits: [*Min x2]) -8/Mines (discovered 2 exits: *Mat x2) -8/Materials (discovered 2 exits: *Fac x2) -7/Factory (discovered 6 exits: *Fac x3 / *Sto x2 / Low) -7/Storage (discovered 2 exits: *Fac / *Rec) -7/Recycling (discovered 2 exits: *Fac / [*Scr]) -7/Scraptown (discovered 2 exits: *Fac x2) -5/Factory (discovered 2 exits: *Upp x2) -5/Upper Caves -5/Upper Caves (discovered 2 exits: *Fac / *Zhi) -5/Zhirov -4/Proximity Caves -4/Factory (discovered 6 exits: *Res / *Upp x2 / Ext x2 / *Arm) -4/Armory (discovered 2 exits: Res / *Lab) -4/Lab -3/Research (discovered 5 exits: *Res x3 / *Tes x2) -3/Testing -2/Research (discovered 2 exits: *Qua x2) -2/Quarantine (discovered 2 exits: *Sec / [*Frg]) -2/Section 7 -1/Access (discovered 2 exits: Sur / *Com) -1/Command (discovered 3 exits: *Sur x2 / *Ac0) -1/Access_0 To Fleet Rendezvous History --------- Turn | Location | Event 14 | -11/Scrapyard | Discovered new exit (range 16) 139 | -11/Scrapyard | Entered Materials 272 | -10/Materials | Discovered new exit (range 6) 306 | -10/Materials | Build established: Mutant 509 | -10/Materials | Discovered new exit (range 12) 613 | -10/Materials | Discovered new exit (range 13) 649 | -10/Materials | Discovered new exit (range 16) 839 | -10/Materials | Discovered new exit (range 8) 977 | -10/Materials | Identified exit to Subcaves 977 | -10/Materials | Learned location of 1 exit from Materials 1006 | -10/Materials | Learned 4 Recycling zone layouts 1025 | -10/Materials | Learned location of 1 exit from Storage 1032 | -10/Materials | Learned 4 Subcaves zone layouts 1033 | -10/Materials | Learned location of Subcaves (-10) 1034 | -10/Materials | Learned 2 Storage zone layouts 1035 | -10/Materials | Learned Storage stockpile data 1045 | -10/Materials | Learned Storage garrison access intel 1061 | -10/Materials | Prayed at D.C.S.S. Altar Unit 1326 | -10/Materials | Entered Mines 1335 | -10/Mines | Met a Derelict who couldn't figure out how to use a Trap Extractor 1348 | -10/Mines | X0-1V1 added 0b10 threat records associated with you (minor) 1383 | -10/Mines | Ranged accuracy permanently improved by X0-1V1 (+5%; -50 max core) 1818 | -10/Mines | Assembled infested the area 1903 | -10/Mines | X0-1V1 revealed exit location to -10/Subcaves 1923 | -10/Mines | X0-1V1 put everyone to sleep 1956 | -10/Mines | X0-1V1 sent hostile S-10 Pest (x4) 2095 | -10/Mines | X0-1V1 sent hostile G-34 Mercenary (x4) 2098 | -10/Mines | X0-1V1 whisked you away to safety 2271 | -10/Mines | Discovered new exit (range 9) 2350 | -10/Mines | X0-1V1 activates XOMVISION 2396 | -10/Mines | Core integrity fell below 50% 2452 | -10/Mines | Core integrity restored by X0-1V1 (+36) 2477 | -10/Mines | X0-1V1 sent hostile G-34 Mercenary (x3) 2556 | -10/Mines | X0-1V1 announced a LAN party 2564 | -10/Mines | Discovered new exit (range 5) 2606 | -10/Mines | Learned location of Zion (-7) 2700 | -10/Mines | X0-1V1 sent you into danger 3270 | -10/Mines | X0-1V1 added 0b10 threat records associated with you (minor) 3567 | -10/Mines | Entered Materials 3567 | -9/Materials | Evolved 2 slots: Propulsion x1, Utility x1 3568 | -9/Materials | Identified exit to Materials 3705 | -9/Materials | Identified exit to Mines 3784 | -9/Materials | X0-1V1 revealed exit location to -8/Materials 3837 | -9/Materials | Propulsion slot count permanently improved by X0-1V1 (+1) 4215 | -9/Materials | X0-1V1 foreshadows a heat wave 4274 | -9/Materials | X0-1V1 activates XOMVISION 4377 | -9/Materials | X0-1V1 revealed exit location to -8/Materials 4420 | -9/Materials | Ambient heat levels rising (+10) 4470 | -9/Materials | X0-1V1 sent you to a vault 4638 | -9/Materials | Ambient heat levels rising (+10) 4643 | -9/Materials | Entered Mines 4655 | -9/Mines | Deemed a non-threat by the Exiles lab entrance 4655 | -9/Mines | Discovered new exit (range 5) 4721 | -9/Mines | X0-1V1 revealed exit location to -8/Materials 4735 | -9/Mines | Met a Derelict testing a Signal Generator 4745 | -9/Mines | Found Signal Generator 4850 | -9/Mines | Heat dissipation permanently improved by X0-1V1 (+25; -125 max core) 4889 | -9/Mines | Learned location of Storage (-7) 5014 | -9/Mines | X0-1V1 activates XOMVISION 5026 | -9/Mines | Learned 2 Materials zone layouts 5218 | -9/Mines | Discovered exit to Materials (range 6) 5370 | -9/Mines | Entered Exiles 5391 | -9/Exiles | Discovered new exit (range 15) 5406 | -9/Exiles | Met 8R-AWN 5426 | -9/Exiles | Met EX-HEX 5463 | -9/Exiles | Met EX-BIN 5477 | -9/Exiles | Aligned with FarCom system 5478 | -9/Exiles | Given EX-Vault access code 5511 | -9/Exiles | Opened EX-Vault 5522 | -9/Exiles | Found Chronowheel 5549 | -9/Exiles | Warned to stay clear of 0b10 Research branches 5567 | -9/Exiles | Exiles lab attacked by MAIN.C 5623 | -9/Exiles | Attacked by the Exiles 5635 | -9/Exiles | Discovered new exit (range 10) 5668 | -9/Exiles | Entered Mines 5712 | -8/Mines | Discovered exit to Materials (range 5) 5776 | -8/Mines | Discovered exit to Materials (range 6) 5800 | -8/Mines | Core integrity restored by X0-1V1 (+54) 5967 | -8/Mines | Destroyed 7 combat bots 6126 | -8/Mines | X0-1V1 vaporized surrounding terrain (radius 21) 6268 | -8/Mines | Entered Materials 6268 | -8/Materials | Evolved 2 slots: Propulsion x1, Utility x1 6380 | -8/Materials | X0-1V1 added 0b10 threat records associated with you (major) 6788 | -8/Materials | Garrison activated, responded to threat 6805 | -8/Materials | X0-1V1 caused items to flee you 6823 | -8/Materials | X0-1V1 announced a LAN party 6978 | -8/Materials | Destroyed 7 combat bots 6980 | -8/Materials | Discovered new exit (range 8) 7010 | -8/Materials | X0-1V1 redirected Transport squads to designated parking area 7015 | -8/Materials | Items stopped fleeing you 7019 | -8/Materials | X0-1V1 sent you to a vault 7068 | -8/Materials | First assault squad dispatched 7138 | -8/Materials | Lost 3 allies 7165 | -8/Materials | Lost 3 parts (3n) 7274 | -8/Materials | Discovered new exit (range 6) 7379 | -8/Materials | Core integrity fell below 50% 7450 | -8/Materials | Build established: Scavenger-Mutant 7480 | -8/Materials | Entered Factory 7480 | -7/Factory | Evolved 2 slots: Utility x2 7481 | -7/Factory | Identified exit to Storage 7884 | -7/Factory | Discovered new exit (range 5) 7918 | -7/Factory | X0-1V1 sent you to a vault 7980 | -7/Factory | Identified exit to Factory 7980 | -7/Factory | X0-1V1 revealed exit location to -6/Factory 8042 | -7/Factory | Garrison activated, responded to threat 8273 | -7/Factory | X0-1V1 revealed exit location to -6/Factory 8455 | -7/Factory | X0-1V1 redirected Transport squads to designated parking area 8885 | -7/Factory | Build established: Mutant 8927 | -7/Factory | X0-1V1 announced a LAN party 8984 | -7/Factory | X0-1V1 made a cryptic comment about sterilization and BL-4Z3 9080 | -7/Factory | First assault squad dispatched 9164 | -7/Factory | Sterilization system engaged 9164 | -7/Factory | Non-combat units ordered to evacuate 9226 | -7/Factory | X0-1V1 enhanced Transport squad support 9264 | -7/Factory | Combat units ordered to evacuate 9305 | -7/Factory | Cargo convoy interrupted 9350 | -7/Factory | X0-1V1 revealed exit location to -7/Storage 9436 | -7/Factory | Identified exit to Lower Caves 9436 | -7/Factory | X0-1V1 revealed exit location to -7/Lower Caves 9450 | -7/Factory | Entered Storage 9454 | -7/Storage | Loaded intel: 1 garrison access location 9768 | -7/Storage | X0-1V1 activates XOMVISION 10281 | -7/Storage | X0-1V1 whisked you away to safety 10570 | -7/Storage | Learned location of Armory (-4) 10626 | -7/Storage | Found Prototype Launcher 10626 | -7/Storage | Identified Rocket Array 10632 | -7/Storage | Found Rocket Array 10641 | -7/Storage | Found Rocket Array 10663 | -7/Storage | Used back door to open Recycling access 10663 | -7/Storage | Discovered new exit (range 5) 10681 | -7/Storage | X0-1V1 put everyone to sleep 10813 | -7/Storage | Entered Recycling 10814 | -7/Recycling | Identified exit to Factory 11236 | -7/Recycling | Lost 8 allies 11396 | -7/Recycling | X0-1V1 caused items to flee you 11539 | -7/Recycling | X0-1V1 activates XOMVISION 11598 | -7/Recycling | Items stopped fleeing you 11683 | -7/Recycling | Core integrity restored by X0-1V1 (+147) 11712 | -7/Recycling | X0-1V1 put everyone to sleep 11803 | -7/Recycling | Scanned before Scraplab entrance 11820 | -7/Recycling | Entered Scraplab 11829 | -7/Recycling | Discovered new exit (range 2) 11830 | -7/Recycling | Entered Scraptown 12032 | -7/Scraptown | Visited Assassins FH 12042 | -7/Scraptown | Visited TADAMA 12104 | -7/Scraptown | Visited SPCMW 12160 | -7/Scraptown | Visited The Evicted 12175 | -7/Scraptown | Visited Shadow of the Wyrm 12186 | -7/Scraptown | Visited Comm Corps 12224 | -7/Scraptown | Visited Cave Peace 12338 | -7/Scraptown | Discovered exit to Factory (range 11) 12705 | -7/Scraptown | X0-1V1 brought Wyrm Statue to life 12705 | -7/Scraptown | Attacked by Scraptown defenders 12737 | -7/Scraptown | Allies destroyed Triborg 12760 | -7/Scraptown | Allies destroyed Chaos Wyrm 12819 | -7/Scraptown | Destroyed 31 combat bots 12827 | -7/Scraptown | Found Scrap Suit 12925 | -7/Scraptown | Core integrity fell below 50% 12959 | -7/Scraptown | Attached CPS modules to Optimus 12964 | -7/Scraptown | Destroyed 20 combat bots 12987 | -7/Scraptown | Core integrity fell below 20% 13005 | -7/Scraptown | X0-1V1 rescued you from certain death 13016 | -7/Scraptown | Visited Science Guys 13017 | -7/Scraptown | Lost 11 parts (2p6n3w) 13038 | -7/Scraptown | Found Prototype Device 13206 | -7/Scraptown | System corruption reached 10% 13207 | -7/Scraptown | Discovered exit to Factory (range 5) 13250 | -7/Scraptown | Destroyed Optimus 13276 | -7/Scraptown | Lost 5 parts (1p2n2u) 13320 | -7/Scraptown | Found Prototype Device 13321 | -7/Scraptown | Identified Master Drone Bay 13322 | -7/Scraptown | Identified Active Sensor Suite 13354 | -7/Scraptown | Found Deep Structural Scanner 13378 | -7/Scraptown | Entered Factory 13378 | -5/Factory | Evolved 4 slots: Power x1, Utility x2, Weapon x1 13433 | -5/Factory | X0-1V1 enhanced Transport squad support 13540 | -5/Factory | System corruption reached 10% 13558 | -5/Factory | Identified exit to Upper Caves 13558 | -5/Factory | X0-1V1 revealed exit location to -5/Upper Caves 13618 | -5/Factory | Build established: Scavenger-Assassin 13631 | -5/Factory | Discovered exit to Upper Caves (range 4) 13648 | -5/Factory | Found Hvy. Reflective Plating 13677 | -5/Factory | Entered Upper Caves 14069 | -5/Upper Caves | Encountered a Warlord checkpoint 14084 | -5/Upper Caves | Found DCF Scrap (12 items) 14253 | -5/Upper Caves | Identified exit to Upper Caves 14253 | -5/Upper Caves | X0-1V1 revealed exit location to -5/Upper Caves 14657 | -5/Upper Caves | Entered another Upper Caves area 14663 | -5/Upper Caves | Discovered new exit (range 5) 14666 | -5/Upper Caves | Identified exit to Factory 14784 | -5/Upper Caves | Attracted the attention of an 0b10 checkpoint 14801 | -5/Upper Caves | X0-1V1 caused items to flee you 14976 | -5/Upper Caves | Items stopped fleeing you 14987 | -5/Upper Caves | Learned Factory terminal intel 14988 | -5/Upper Caves | X0-1V1 activates XOMVISION 15107 | -5/Upper Caves | X0-1V1 sent hostile G-50 Soldier (x3) 15263 | -5/Upper Caves | Discovered new exit (range 12) 15273 | -5/Upper Caves | Identified exit to Zhirov 15288 | -5/Upper Caves | Learned Factory trap positions 15332 | -5/Upper Caves | X0-1V1 activates XOMVISION 15378 | -5/Upper Caves | Entered Zhirov 15378 | -5/Zhirov | Discovered new exit (range 3) 15396 | -5/Zhirov | Met Zhirov 15411 | -5/Zhirov | Learned location of Quarantine (-2) 15411 | -5/Zhirov | Learned location of Testing (-3) 15411 | -5/Zhirov | Learned location of Command (-1) 15419 | -5/Zhirov | Zhirov requested help retrieving the SGEMP Prototype 15433 | -5/Zhirov | Found Alien Artifact 15433 | -5/Zhirov | Identified Integrated Dissipator 15433 | -5/Zhirov | Installed Integrated Dissipator, increased core heat dissipation (+20) 15585 | -5/Zhirov | Attached CPS modules to Q582-l 15621 | -5/Zhirov | Found Alien Artifact 15662 | -5/Zhirov | Cloak Generator disabled 15662 | -5/Zhirov | Attacked by Zhirov 15672 | -5/Zhirov | Enhanced Grunts warped into view 15689 | -5/Zhirov | Zhirov detonated his lab 15728 | -5/Zhirov | Attached CPS modules to Enhanced Grunt 15745 | -5/Zhirov | Found Prototype Device 15745 | -5/Zhirov | Identified Exp. Thermal Shield 15815 | -5/Zhirov | Build established: Scavenger-Mutant 15820 | -5/Zhirov | Attached CPS modules to Enhanced Grunt 15895 | -5/Zhirov | Entered Proximity Caves 16005 | -4/Proximity Caves | Spotted B-86 Titan 16067 | -4/Proximity Caves | Spotter reported a threat 16158 | -4/Proximity Caves | Discovered exit to Factory (range 21) 16179 | -4/Proximity Caves | Entered Factory 16179 | -4/Factory | Evolved 2 slots: Power x1, Utility x1 16180 | -4/Factory | Loaded intel: 77 trap records 16181 | -4/Factory | Loaded intel: 26 terminal locations 16200 | -4/Factory | Identified exit to Upper Caves 16200 | -4/Factory | Identified exit to Extension 16200 | -4/Factory | Identified exit to Armory 16263 | -4/Factory | X0-1V1 released a cloud of subatomizers 16341 | -4/Factory | X0-1V1 activates XOMVISION 16489 | -4/Factory | Weapon slot count temporarily expanded by X0-1V1 (+1) 16543 | -4/Factory | Garrison activated, responded to threat 16681 | -4/Factory | X0-1V1 sent you to a vault 16704 | -4/Factory | Found Prototype Launcher 16704 | -4/Factory | Identified Containment Facilitator 16709 | -4/Factory | Found Prototype Processor 16709 | -4/Factory | Identified Exp. Target Analyzer 16727 | -4/Factory | Found Prototype Protection 16727 | -4/Factory | Identified Centrium Heavy Armor Plating 16737 | -4/Factory | Found Prototype Device 16737 | -4/Factory | Identified Exp. Shock Absorption System 16755 | -4/Factory | Found Exp. Sensor Array 16777 | -4/Factory | Weapon slot count reverted to normal (-1) 16838 | -4/Factory | X0-1V1 sent allied B-99 Colossus (x1) 16962 | -4/Factory | Found Prototype Processor 16962 | -4/Factory | Identified Exp. Signal Interpreter 17101 | -4/Factory | Discovered new exit (range 5) 17104 | -4/Factory | Identified exit to Research 17162 | -4/Factory | Sterilization system engaged 17162 | -4/Factory | Non-combat units ordered to evacuate 17206 | -4/Factory | Entered Armory 17383 | -4/Armory | X0-1V1 revealed exit location to -3/Research 17439 | -4/Armory | X0-1V1 destroyed Energy Cycler 17439 | -4/Armory | Energy Cycler disabled 17481 | -4/Armory | X0-1V1 announced a LAN party 17482 | -4/Armory | Build established: Scavenger-Assassin 17691 | -4/Armory | X0-1V1 vaporized surrounding terrain (radius 24) 17749 | -4/Armory | Spotted B-86 Titan 17799 | -4/Armory | Identified Transdimensional Reconstructor 17799 | -4/Armory | Warped through subspace to slip node 17799 | -4/Armory | Discovered new exit (range 1) 17799 | -4/Armory | Identified exit to Lab 17869 | -4/Armory | Found Prototype Launcher 17869 | -4/Armory | Identified Mni. Smartbomb Launcher 18141 | -4/Armory | Weapon slot count temporarily expanded by X0-1V1 (+3) 18167 | -4/Armory | X0-1V1 sent allied Thug (x4) 18192 | -4/Armory | Spotted Armor Guard 18192 | -4/Armory | Spotted Armor Guard 18221 | -4/Armory | Destroyed Armor Guard 18228 | -4/Armory | Found Prototype Device 18228 | -4/Armory | Identified Exp. Weapon Cycler 18245 | -4/Armory | Destroyed Armor Guard 18259 | -4/Armory | Lost 4 allies 18277 | -4/Armory | Found Superdense Plating 18285 | -4/Armory | System corruption reached 10% 18307 | -4/Armory | Destroyed 11 combat bots 18560 | -4/Armory | X0-1V1 activates XOMVISION 18735 | -4/Armory | Weapon slot count reverted to normal (-3) 18806 | -4/Armory | Entered Lab 18810 | -4/Lab | Discovered exit to Research (range 9) 18830 | -4/Lab | Unable to decrypt terminal 18830 | -4/Lab | Opened the door to a hidden lab 18831 | -4/Lab | Gained access to the hidden lab's interior 18900 | -4/Lab | Detected by scanners 18909 | -4/Lab | Confronted by A5 18930 | -4/Lab | Destroyed A5 19073 | -4/Lab | Found Prototype Protection 19073 | -4/Lab | Identified Exp. Powered Armor 19081 | -4/Lab | Found Prototype Energy Cannon 19081 | -4/Lab | Identified Warp Cannon 19177 | -4/Lab | Found Alien Artifact 19177 | -4/Lab | Identified Integrated Reactor 19177 | -4/Lab | Installed Integrated Reactor, increased core energy generation (+10) 19185 | -4/Lab | Found Alien Artifact 19185 | -4/Lab | Identified Core Regenerator 19185 | -4/Lab | Used Core Regenerator, restored core integrity (+173) 19201 | -4/Lab | Found Transdimensional Reconstructor 19247 | -4/Lab | Found Prototype Hackware 19247 | -4/Lab | Identified Exp. System Shield 19294 | -4/Lab | Found Prototype Hackware 19294 | -4/Lab | Identified Quantum Router 19302 | -4/Lab | Found Prototype Energy Gun 19302 | -4/Lab | Identified Tachyon Dispersion Ray 19364 | -4/Lab | Entered Research 19364 | -3/Research | Evolved 2 slots: Propulsion x1, Utility x1 19427 | -3/Research | Build established: Scavenger-Tank 19551 | -3/Research | X0-1V1 sent you to a vault 19623 | -3/Research | Discovered new exit (range 28) 19723 | -3/Research | Lost 4 allies 19741 | -3/Research | Identified exit to Research 19880 | -3/Research | Discovered exit to Research (range 12) 19926 | -3/Research | Identified exit to Testing 20030 | -3/Research | Intercept squad dispatched 20038 | -3/Research | Spotted Tracker 20038 | -3/Research | Spotted Tracker 20041 | -3/Research | Destroyed Tracker 20049 | -3/Research | Spotted Combat Programmer 20056 | -3/Research | Spotted Combat Programmer 20062 | -3/Research | System corruption reached 10% 20064 | -3/Research | Destroyed Tracker 20070 | -3/Research | Destroyed Combat Programmer 20080 | -3/Research | Destroyed Combat Programmer 20095 | -3/Research | Found Prototype Device 20095 | -3/Research | Identified Exp. Phase Shifter 20135 | -3/Research | Found Prototype Processor 20136 | -3/Research | Identified Exp. Targeting Computer 20180 | -3/Research | X0-1V1 activates XOMVISION 20245 | -3/Research | X0-1V1 revealed exit location to -2/Research 20273 | -3/Research | Entered Testing 20296 | -3/Testing | Found Prototype Energy Cannon 20296 | -3/Testing | Identified Potential Cannon 20304 | -3/Testing | Found Potential Cannon 20363 | -3/Testing | Spotted Alpha 7 20374 | -3/Testing | Destroyed Alpha 7 20430 | -3/Testing | Rewired 52-ZBT(L) 20644 | -3/Testing | Found Prototype Ballistic Gun 20645 | -3/Testing | Identified Hyp. Multirail 20678 | -3/Testing | Found Prototype Launcher 20678 | -3/Testing | Identified Tactical Quantum Warhead 20717 | -3/Testing | Spotted Striker 20774 | -3/Testing | X0-1V1 put everyone to sleep 20792 | -3/Testing | Rewired PL-2SC23F2C7A 20838 | -3/Testing | Destroyed PL-2SC23F2C7A 20924 | -3/Testing | Intercept squad dispatched 20926 | -3/Testing | Spotted Tracker 20932 | -3/Testing | Scanned by Researcher 20934 | -3/Testing | Spotted Combat Programmer 20959 | -3/Testing | Destroyed Tracker 20973 | -3/Testing | Destroyed Combat Programmer 20992 | -3/Testing | X0-1V1 sent hostile Y-72 Warden (x2) 21056 | -3/Testing | Destroyed 10 combat bots 21091 | -3/Testing | Found Prototype Hackware 21116 | -3/Testing | Identified Ghost Barrier 21258 | -3/Testing | Found Prototype Device 21258 | -3/Testing | Identified 2N-1CE's Frost Array 21583 | -3/Testing | Found Prototype Energy Gun 21583 | -3/Testing | Identified Hyp. EM Gauss Rifle 21604 | -3/Testing | X0-1V1 caused items to flee you 21661 | -3/Testing | Intercept squad dispatched 21664 | -3/Testing | Spotted Tracker 21668 | -3/Testing | Destroyed Tracker 21674 | -3/Testing | Spotted Tracker 21678 | -3/Testing | Destroyed Tracker 21692 | -3/Testing | Spotted Combat Programmer 21693 | -3/Testing | X0-1V1 woke everyone up 21693 | -3/Testing | Destroyed Combat Programmer 21699 | -3/Testing | X0-1V1 added 0b10 threat records associated with you (major) 21700 | -3/Testing | Spotted Combat Programmer 21708 | -3/Testing | Destroyed Combat Programmer 21826 | -3/Testing | Items stopped fleeing you 21888 | -3/Testing | Found Exp. Phase Shifter 21985 | -3/Testing | Destroyed PX-3X9SS0ET3A 21991 | -3/Testing | Found Prototype Device 21991 | -3/Testing | Identified Exp. Transmission Jammer 22023 | -3/Testing | First assault squad dispatched 22034 | -3/Testing | Discovered exit to Research (range 5) 22042 | -3/Testing | Entered Research 22042 | -2/Research | Evolved 2 slots: Utility x1, Weapon x1 22262 | -2/Research | X0-1V1 activates XOMVISION 22323 | -2/Research | X0-1V1 announced a LAN party 22334 | -2/Research | Identified exit to Quarantine 22641 | -2/Research | Intercept squad dispatched 22673 | -2/Research | Spotted Tracker 22675 | -2/Research | Destroyed Tracker 22675 | -2/Research | Spotted Tracker 22679 | -2/Research | Destroyed Tracker 22694 | -2/Research | Found Exp. Targeting Computer 22697 | -2/Research | Found Exp. Phase Shifter 22711 | -2/Research | Spotted Combat Programmer 22718 | -2/Research | Destroyed Combat Programmer 22750 | -2/Research | Destroyed 10 combat bots 22752 | -2/Research | Spotted Combat Programmer 22759 | -2/Research | Destroyed Combat Programmer 22766 | -2/Research | Found Exp. Phase Shifter 22792 | -2/Research | First assault squad dispatched 22951 | -2/Research | Build established: Scavenger-Gunner 22959 | -2/Research | Entered Quarantine 22963 | -2/Quarantine | X0-1V1 enhanced Transport squad support 23035 | -2/Quarantine | Found Alien Slashing Weapon 23035 | -2/Quarantine | Identified Sigix Broadsword 23136 | -2/Quarantine | X0-1V1 caused items to flee you 23207 | -2/Quarantine | Discovered new exit (range 12) 23326 | -2/Quarantine | Build established: Scavenger-Assassin 23353 | -2/Quarantine | Items stopped fleeing you 23402 | -2/Quarantine | Found Alien Impact Weapon 23405 | -2/Quarantine | X0-1V1 sent hostile Thug (x2) 23532 | -2/Quarantine | X0-1V1 added 0b10 threat records associated with you (minor) 23597 | -2/Quarantine | Intercept squad dispatched 23597 | -2/Quarantine | Spotted Tracker 23599 | -2/Quarantine | Spotted Tracker 23609 | -2/Quarantine | Spotted Combat Programmer 23610 | -2/Quarantine | Destroyed Tracker 23611 | -2/Quarantine | Spotted Combat Programmer 23620 | -2/Quarantine | Weapon slot count temporarily expanded by X0-1V1 (+2) 23624 | -2/Quarantine | Destroyed Tracker 23629 | -2/Quarantine | Destroyed Combat Programmer 23634 | -2/Quarantine | Destroyed Combat Programmer 23776 | -2/Quarantine | X0-1V1 activates XOMVISION 23807 | -2/Quarantine | Found Alien Artifact 23807 | -2/Quarantine | Identified Dimensional Node Initializer 23807 | -2/Quarantine | Initialized slip node 23813 | -2/Quarantine | Found Dimensional Node Initializer 23822 | -2/Quarantine | Found Transdimensional Reconstructor 23899 | -2/Quarantine | Found Alien Artifact 24069 | -2/Quarantine | Build established: Assassin 24071 | -2/Quarantine | Spotted Alpha 7 24112 | -2/Quarantine | Garrison activated, responded to threat 24112 | -2/Quarantine | Destroyed Alpha 7 24160 | -2/Quarantine | Destroyed 11 combat bots 24209 | -2/Quarantine | First assault squad dispatched 24218 | -2/Quarantine | Identified Core Stripper 24224 | -2/Quarantine | Spotted Fortress 24232 | -2/Quarantine | Destroyed Fortress 24238 | -2/Quarantine | Found Centrium Heavy Armor Plating 24248 | -2/Quarantine | Found Prototype Device 24248 | -2/Quarantine | Identified Exp. Force Field 24253 | -2/Quarantine | Found Prototype Reactor 24253 | -2/Quarantine | Identified Vortex Chain Reactor 24257 | -2/Quarantine | Found Prototype Device 24257 | -2/Quarantine | Identified Exp. EM Shield 24270 | -2/Quarantine | Weapon slot count reverted to normal (-2) 24272 | -2/Quarantine | Found Vortex Chain Reactor 24281 | -2/Quarantine | Sensors blinded by X0-1V1 24288 | -2/Quarantine | Identified Core Reset Matrix 24288 | -2/Quarantine | Used Core Reset Matrix 24292 | -2/Quarantine | Detected hypermatrix surge 24292 | -2/Quarantine | Sensed 8 artifacts in vicinity 24427 | -2/Quarantine | Discovered new exit (range 6) 24427 | -2/Quarantine | Discovered new exit (range 7) 24433 | -2/Quarantine | Identified exit to Section 7 24435 | -2/Quarantine | Entered Section 7 24436 | -2/Section 7 | Detected hypermatrix surge 24436 | -2/Section 7 | Sensed 18 artifacts in vicinity 24462 | -2/Section 7 | Found Microwarp Drive 24547 | -2/Section 7 | Spotted S7 Guard 24553 | -2/Section 7 | Found Integrated Thermoelectric Network 24553 | -2/Section 7 | Installed Integrated Thermoelectric Network, gained heat-energy exchange potential 24569 | -2/Section 7 | X0-1V1 turns hostiles against one another 24605 | -2/Section 7 | X0-1V1 sent allied Lightning (x2) 24613 | -2/Section 7 | Allies destroyed S7 Guard 24667 | -2/Section 7 | Scanned by Researcher 24675 | -2/Section 7 | Found Integrated Dissipator 24675 | -2/Section 7 | Installed Integrated Dissipator, increased core heat dissipation (+20) 24731 | -2/Section 7 | Discovered new exit (range 7) 24742 | -2/Section 7 | Identified exit to Access 24756 | -2/Section 7 | Found Centrium Heavy Armor Plating 24767 | -2/Section 7 | Initialized slip node 24880 | -2/Section 7 | Spotted Executioner 24883 | -2/Section 7 | Spotted Executioner 24916 | -2/Section 7 | Destroyed Executioner 24918 | -2/Section 7 | Destroyed Executioner 24931 | -2/Section 7 | Found Exp. Core Analyzer 25013 | -2/Section 7 | Build established: Alien-Mutant 25025 | -2/Section 7 | Found Transdimensional Reconstructor 25094 | -2/Section 7 | X0-1V1 activates XOMVISION 25103 | -2/Section 7 | X0-1V1 sent you to a vault 25184 | -2/Section 7 | Intercept squad dispatched 25204 | -2/Section 7 | Spotted Tracker 25205 | -2/Section 7 | Spotted Tracker 25211 | -2/Section 7 | Destroyed Tracker 25214 | -2/Section 7 | Destroyed Tracker 25243 | -2/Section 7 | Spotted Striker 25243 | -2/Section 7 | Spotted Striker 25250 | -2/Section 7 | Spotted Combat Programmer 25257 | -2/Section 7 | Destroyed Combat Programmer 25258 | -2/Section 7 | Spotted Combat Programmer 25263 | -2/Section 7 | Destroyed Combat Programmer 25264 | -2/Section 7 | Spotted Striker 25270 | -2/Section 7 | Destroyed Striker 25271 | -2/Section 7 | Destroyed Striker 25271 | -2/Section 7 | Spotted Striker 25274 | -2/Section 7 | Destroyed Striker 25291 | -2/Section 7 | X0-1V1 sent allied Guerrilla (x2) 25317 | -2/Section 7 | Found Centrium Heavy Armor Plating 25321 | -2/Section 7 | Found Sigix Shearcannon 25351 | -2/Section 7 | Found Sigix Sheargun 25434 | -2/Section 7 | Spotted Executioner 25434 | -2/Section 7 | Spotted Executioner 25435 | -2/Section 7 | First assault squad dispatched 25443 | -2/Section 7 | Allies destroyed Executioner 25448 | -2/Section 7 | Destroyed Executioner 25567 | -2/Section 7 | High security lockdown imminent 25604 | -2/Section 7 | Destroyed 10 combat bots 25647 | -2/Section 7 | High security lockdown engaged 25716 | -2/Section 7 | Spotted B-99 Colossus 25740 | -2/Section 7 | Master Drone dominated B-99 Colossus 25758 | -2/Section 7 | Found Thermal Barrier 25782 | -2/Section 7 | Core integrity restored by X0-1V1 (+204) 25802 | -2/Section 7 | Destroyed 14 combat bots 25906 | -2/Section 7 | Intercept squad dispatched 25921 | -2/Section 7 | Spotted Tracker 25922 | -2/Section 7 | Spotted Tracker 25925 | -2/Section 7 | Destroyed Tracker 25927 | -2/Section 7 | Destroyed Tracker 25959 | -2/Section 7 | Spotted Combat Programmer 25959 | -2/Section 7 | Spotted Combat Programmer 25962 | -2/Section 7 | Destroyed Combat Programmer 25968 | -2/Section 7 | Destroyed Combat Programmer 25977 | -2/Section 7 | Spotted Investigator 25981 | -2/Section 7 | Allies destroyed Investigator 26010 | -2/Section 7 | Destroyed 17 combat bots 26035 | -2/Section 7 | Spotted Executioner 26035 | -2/Section 7 | Destroyed Executioner 26036 | -2/Section 7 | Spotted Striker 26042 | -2/Section 7 | Spotted Striker 26047 | -2/Section 7 | Destroyed Striker 26047 | -2/Section 7 | Spotted Investigator 26049 | -2/Section 7 | Destroyed Investigator 26052 | -2/Section 7 | Allies destroyed Striker 26091 | -2/Section 7 | Destroyed 21 combat bots 26230 | -2/Section 7 | Spotted Striker 26230 | -2/Section 7 | Destroyed Striker 26235 | -2/Section 7 | Spotted Striker 26236 | -2/Section 7 | Destroyed Striker 26255 | -2/Section 7 | Sterilization system engaged 26255 | -2/Section 7 | Non-combat units ordered to evacuate 26269 | -2/Section 7 | Destroyed 17 combat bots 26323 | -2/Section 7 | Destroyed 12 combat bots 26355 | -2/Section 7 | Combat units ordered to evacuate 26384 | -2/Section 7 | X0-1V1 caused items to flee you 26405 | -2/Section 7 | X0-1V1 announced a LAN party 26530 | -2/Section 7 | X0-1V1 activates XOMVISION 26555 | -2/Section 7 | Ambient heat levels rising (+10) 26555 | -2/Section 7 | Items stopped fleeing you 26689 | -2/Section 7 | X0-1V1 put everyone to sleep 26705 | -2/Section 7 | Ambient heat levels rising (+10) 26731 | -2/Section 7 | Found Integrated Reactor 26731 | -2/Section 7 | Installed Integrated Reactor, increased core energy generation (+10) 26801 | -2/Section 7 | Found LRC Insulator 26801 | -2/Section 7 | Installed LRC Insulator, 1 resistance modified: EM +25% 26855 | -2/Section 7 | Ambient heat levels rising (+10) 27005 | -2/Section 7 | Ambient heat levels rising (+10) 27155 | -2/Section 7 | Ambient heat levels rising (+10) 27221 | -2/Section 7 | X0-1V1 added 0b10 threat records associated with you (considerable) 27305 | -2/Section 7 | Ambient heat levels rising (+10) 27455 | -2/Section 7 | Ambient heat levels rising (+10) 27481 | -2/Section 7 | Entered Access 27481 | -1/Access | Accompanied by 1 ally 27481 | -1/Access | Evolved 2 slots: Utility x2 27604 | -1/Access | High security lockdown imminent 27671 | -1/Access | X0-1V1 put everyone to sleep 27684 | -1/Access | High security lockdown engaged 27967 | -1/Access | Identified exit to Surface 27967 | -1/Access | X0-1V1 revealed exit location to -0/Surface 27970 | -1/Access | Spotted Striker 27970 | -1/Access | Spotted Executioner 27970 | -1/Access | Destroyed Striker 27976 | -1/Access | Destroyed Executioner 28000 | -1/Access | Destroyed 8 combat bots 28117 | -1/Access | Destroyed 8 combat bots 28131 | -1/Access | Spotted Executioner 28141 | -1/Access | Destroyed Executioner 28148 | -1/Access | Spotted Striker 28148 | -1/Access | Destroyed Striker 28170 | -1/Access | Spotted Executioner 28170 | -1/Access | Spotted Executioner 28173 | -1/Access | Destroyed Executioner 28173 | -1/Access | Destroyed Executioner 28178 | -1/Access | Spotted Investigator 28184 | -1/Access | Destroyed Investigator 28196 | -1/Access | Destroyed Executioner 28199 | -1/Access | Destroyed Striker 28200 | -1/Access | Spotted Striker 28200 | -1/Access | Destroyed Striker 28206 | -1/Access | Found Prototype Launcher 28206 | -1/Access | Identified Containment Facilitator 28231 | -1/Access | Warped through subspace 28250 | -1/Access | Destroyed 19 combat bots 28251 | -1/Access | Intercept squad dispatched 28278 | -1/Access | Spotted Executioner 28283 | -1/Access | Destroyed Executioner 28284 | -1/Access | Spotted Tracker 28285 | -1/Access | Spotted Tracker 28296 | -1/Access | Destroyed Tracker 28301 | -1/Access | Destroyed Tracker 28318 | -1/Access | Found Exp. Phase Shifter 28329 | -1/Access | Destroyed 31 combat bots 28353 | -1/Access | Spotted Combat Programmer 28371 | -1/Access | Spotted Combat Programmer 28400 | -1/Access | Destroyed Combat Programmer 28419 | -1/Access | Spotted Striker 28419 | -1/Access | Spotted Striker 28425 | -1/Access | X0-1V1 woke everyone up 28438 | -1/Access | Destroyed Striker 28443 | -1/Access | Destroyed Striker 28464 | -1/Access | Destroyed 9 combat bots 28482 | -1/Access | Spotted Executioner 28483 | -1/Access | Spotted Executioner 28483 | -1/Access | Destroyed Executioner 28485 | -1/Access | Destroyed Executioner 28485 | -1/Access | Spotted Striker 28488 | -1/Access | Destroyed Striker 28492 | -1/Access | Spotted Striker 28492 | -1/Access | Destroyed Striker 28511 | -1/Access | Spotted Executioner 28517 | -1/Access | Destroyed Executioner 28536 | -1/Access | Spotted Executioner 28536 | -1/Access | Spotted Executioner 28537 | -1/Access | Destroyed Executioner 28539 | -1/Access | Destroyed Executioner 28576 | -1/Access | Sterilization system engaged 28581 | -1/Access | Destroyed 40 combat bots 28608 | -1/Access | X0-1V1 vaporized surrounding terrain (radius 18) 28609 | -1/Access | Spotted Striker 28609 | -1/Access | Spotted Striker 28609 | -1/Access | Destroyed Striker 28615 | -1/Access | Destroyed Striker 28616 | -1/Access | Spotted Executioner 28618 | -1/Access | Spotted Executioner 28619 | -1/Access | Spotted Executioner 28619 | -1/Access | Destroyed Executioner 28622 | -1/Access | Destroyed Executioner 28626 | -1/Access | Destroyed Executioner 28647 | -1/Access | Destroyed 7 combat bots 28661 | -1/Access | Spotted Striker 28661 | -1/Access | Spotted Executioner 28666 | -1/Access | Spotted Striker 28666 | -1/Access | Spotted Striker 28666 | -1/Access | Spotted Executioner 28667 | -1/Access | Destroyed Striker 28678 | -1/Access | Destroyed Striker 28681 | -1/Access | Destroyed Executioner 28685 | -1/Access | Destroyed Striker 28688 | -1/Access | Destroyed Executioner 28693 | -1/Access | Build established: Scavenger-Mutant 28696 | -1/Access | Found Exp. Core Analyzer 28711 | -1/Access | Destroyed 10 combat bots 28754 | -1/Access | X0-1V1 enhanced Transport squad support 28801 | -1/Access | Spotted Striker 28801 | -1/Access | Spotted Executioner 28806 | -1/Access | Destroyed Striker 28808 | -1/Access | Destroyed Executioner 28871 | -1/Access | X0-1V1 vaporized surrounding terrain (radius 18) 28876 | -1/Access | Ambient heat levels rising (+10) 29026 | -1/Access | Ambient heat levels rising (+10) 29040 | -1/Access | Spotted B-99 Colossus 29060 | -1/Access | Master Drone dominated B-99 Colossus 29104 | -1/Access | Destroyed Mastered Colossus 10a 29126 | -1/Access | Found Prototype Ballistic Gun 29133 | -1/Access | Found Prototype Ballistic Gun 29134 | -1/Access | Identified Multirail (x2) 29176 | -1/Access | Ambient heat levels rising (+10) 29177 | -1/Access | Found Unknown Protection 29202 | -1/Access | Identified Hvy. Reflective Plating 29212 | -1/Access | Destroyed 9 combat bots 29326 | -1/Access | Ambient heat levels rising (+10) 29339 | -1/Access | Found Prototype Device 29340 | -1/Access | Identified Exp. Thermal Shield 29419 | -1/Access | Core integrity restored by X0-1V1 (+299) 29465 | -1/Access | Energy Cycler disabled 29476 | -1/Access | Ambient heat levels rising (+10) 29534 | -1/Access | Spotted B-99 Colossus 29545 | -1/Access | Identified exit to Command 29545 | -1/Access | X0-1V1 revealed exit location to -1/Command 29626 | -1/Access | Ambient heat levels rising (+10) 29776 | -1/Access | Ambient heat levels rising (+10) 29850 | -1/Access | X0-1V1 sent you to a vault 29917 | -1/Access | Found Unknown Launcher 29917 | -1/Access | Identified Fusion Bomb Launcher 29926 | -1/Access | Ambient heat levels rising (+10) 30076 | -1/Access | Ambient heat levels rising (+10) 30226 | -1/Access | Ambient heat levels rising (+10) 30376 | -1/Access | Ambient heat levels rising (+10) 30444 | -1/Access | X0-1V1 activates XOMVISION 30526 | -1/Access | Ambient heat levels rising (+10) 30676 | -1/Access | Ambient heat levels rising (+10) 30826 | -1/Access | Ambient heat levels rising (+10) 30976 | -1/Access | Ambient heat levels rising (+10) 31126 | -1/Access | Ambient heat levels rising (+10) 31276 | -1/Access | Ambient heat levels rising (+10) 31426 | -1/Access | Ambient heat levels rising (+10) 31511 | -1/Access | Build established: Alien-Mutant 31576 | -1/Access | Ambient heat levels rising (+10) 31726 | -1/Access | Ambient heat levels rising (+10) 31876 | -1/Access | Ambient heat levels rising (+10) 32026 | -1/Access | Ambient heat levels rising (+10) 32176 | -1/Access | Ambient heat levels rising (+10) 32326 | -1/Access | Ambient heat levels rising (+10) 32476 | -1/Access | Ambient heat levels rising (+10) 32626 | -1/Access | Ambient heat levels rising (+10) 32776 | -1/Access | Ambient heat levels rising (+10) 32926 | -1/Access | Ambient heat levels rising (+10) 33076 | -1/Access | Ambient heat levels rising (+10) 33152 | -1/Access | Core integrity restored by X0-1V1 (+270) 33226 | -1/Access | Ambient heat levels rising (+10) 33376 | -1/Access | Ambient heat levels rising (+10) 33384 | -1/Access | Entered Command 33402 | -1/Command | X0-1V1 vaporized surrounding terrain (radius 17) 33490 | -1/Command | Spotted Alpha 7 33500 | -1/Command | Destroyed Alpha 7 33559 | -1/Command | Found Exp. Target Analyzer 33574 | -1/Command | Spotted Executioner 33587 | -1/Command | High security lockdown imminent 33588 | -1/Command | Destroyed Executioner 33590 | -1/Command | Identified exit to Access_0 33590 | -1/Command | X0-1V1 revealed exit location to -1/Access_0 33615 | -1/Command | X0-1V1 vaporized surrounding terrain (radius 21) 33615 | -1/Command | Spotted B-99 Colossus 33615 | -1/Command | Spotted Executioner 33615 | -1/Command | Spotted Executioner 33615 | -1/Command | Spotted Executioner 33615 | -1/Command | Spotted Striker 33615 | -1/Command | Spotted B-99 Colossus 33641 | -1/Command | Spotted Striker 33645 | -1/Command | Destroyed Striker 33651 | -1/Command | Destroyed Striker 33659 | -1/Command | Destroyed Executioner 33666 | -1/Command | Spotted Alpha 7 33667 | -1/Command | High security lockdown engaged 33670 | -1/Command | Destroyed Executioner 33679 | -1/Command | Destroyed Alpha 7 33700 | -1/Command | Destroyed 8 combat bots 33707 | -1/Command | Master Drone dominated B-99 Colossus 33752 | -1/Command | Spotted Striker 33752 | -1/Command | Spotted Striker 33758 | -1/Command | Found Ragnarok Missile Launcher 33764 | -1/Command | Destroyed Striker 33765 | -1/Command | Destroyed Striker 33806 | -1/Command | Destroyed 14 combat bots 33857 | -1/Command | Spotted Executioner 33857 | -1/Command | Spotted Executioner 33869 | -1/Command | Destroyed Executioner 33869 | -1/Command | Destroyed Executioner 33871 | -1/Command | Master Drone dominated Colossus 10b 33872 | -1/Command | Spotted Investigator 33893 | -1/Command | Destroyed Investigator 33914 | -1/Command | Destroyed 15 combat bots 33946 | -1/Command | X0-1V1 activates XOMVISION 34004 | -1/Command | Spotted Investigator 34009 | -1/Command | Allies destroyed Investigator 34011 | -1/Command | Destroyed Striker 34012 | -1/Command | Spotted Executioner 34019 | -1/Command | Destroyed Executioner 34054 | -1/Command | Destroyed 25 combat bots 34083 | -1/Command | X0-1V1 sent you to a vault 34121 | -1/Command | Spotted B-99 Colossus 34272 | -1/Command | Spotted Striker 34272 | -1/Command | Spotted Striker 34275 | -1/Command | Destroyed Striker 34284 | -1/Command | Destroyed Striker 34297 | -1/Command | Spotted Executioner 34320 | -1/Command | Destroyed 7 combat bots 34354 | -1/Command | Destroyed Executioner 34365 | -1/Command | Spotted Executioner 34366 | -1/Command | Destroyed Executioner 34369 | -1/Command | Spotted Executioner 34369 | -1/Command | Spotted Striker 34371 | -1/Command | Destroyed Executioner 34389 | -1/Command | Destroyed Striker 34486 | -1/Command | Spotted Striker 34526 | -1/Command | Spotted Executioner 34529 | -1/Command | Destroyed Striker 34546 | -1/Command | Destroyed Executioner 34565 | -1/Command | Spotted Investigator 34605 | -1/Command | Destroyed Investigator 34618 | -1/Command | Spotted Executioner 34618 | -1/Command | Spotted Striker 34624 | -1/Command | Destroyed Executioner 34633 | -1/Command | Build established: Alien-Tank 34637 | -1/Command | Destroyed Striker 34660 | -1/Command | Destroyed 53 combat bots 34664 | -1/Command | X0-1V1 sent hostile H-88 Terminator (x2) 34678 | -1/Command | Spotted Executioner 34678 | -1/Command | Spotted Executioner 34680 | -1/Command | Destroyed Executioner 34680 | -1/Command | Destroyed Executioner 34935 | -1/Command | Spotted Striker 34935 | -1/Command | Spotted Striker 34935 | -1/Command | Spotted Executioner 34936 | -1/Command | Destroyed Executioner 34939 | -1/Command | Destroyed Striker 34943 | -1/Command | Destroyed Striker 34968 | -1/Command | Destroyed 9 combat bots 34984 | -1/Command | Build established: Scavenger-Mutant 35050 | -1/Command | Spotted Executioner 35063 | -1/Command | Destroyed Executioner 35248 | -1/Command | Core integrity restored by X0-1V1 (+356) 35426 | -1/Command | Destroyed B-99 Colossus 35550 | -1/Command | Spotted M Guard 35552 | -1/Command | Spotted M Guard 35553 | -1/Command | Spotted Combat Programmer 35553 | -1/Command | Spotted Combat Programmer 35582 | -1/Command | Destroyed Combat Programmer 35590 | -1/Command | Destroyed Combat Programmer 35620 | -1/Command | Destroyed M Guard 35670 | -1/Command | Destroyed M Guard 35670 | -1/Command | All MAIN.C guards destroyed 35717 | -1/Command | Found Prototype Reactor 35717 | -1/Command | Identified Zero-point Reactor 35726 | -1/Command | Found Zero-point Reactor 35729 | -1/Command | Found Prototype Energy Cannon 35730 | -1/Command | Identified Cld. Nova Cannon 35735 | -1/Command | Found Prototype Protection 35735 | -1/Command | Identified Hvy. Regenerative Plating 35768 | -1/Command | Found Prototype Launcher 35768 | -1/Command | Identified Adv. Micro-nuke Launcher 35781 | -1/Command | Found Zero-point Reactor 35796 | -1/Command | Found Exp. Targeting Computer 35874 | -1/Command | Build established: Scavenger-Gunner 35946 | -1/Command | X0-1V1 caused items to flee you 36053 | -1/Command | X0-1V1 sent you into danger 36123 | -1/Command | X0-1V1 sent hostile D-83 Annihilator (x1) 36186 | -1/Command | Items stopped fleeing you 36190 | -1/Command | Build established: Alien-Gunner 36355 | -1/Command | Met MAIN.C 36361 | -1/Command | 0b10 Conduit disabled 36363 | -1/Command | System corruption reached 10% 36387 | -1/Command | Destroyed MAIN.C Shell 36389 | -1/Command | MAIN.C activated Command garrisons 36417 | -1/Command | Destroyed MAIN.C 36433 | -1/Command | Found Centrium Heavy Armor Plating 36452 | -1/Command | Found Prototype Protection 36452 | -1/Command | Identified Exp. Powered Armor 36462 | -1/Command | Discovered exit to Surface (range 38) 36462 | -1/Command | Discovered exit to Surface (range 86) 36462 | -1/Command | Extracted map data and part IDs from MAIN.C's data core 36465 | -1/Command | Found Exp. Shock Absorption System 36470 | -1/Command | Found Zero-point Reactor 36502 | -1/Command | Spotted B-99 Colossus 36505 | -1/Command | X0-1V1 whisked you away to safety 36644 | -1/Command | Build established: Scavenger-Gunner 37238 | -1/Command | Found Hvy. Regenerative Plating 37468 | -1/Command | Found Exp. System Purifier 37480 | -1/Command | Found Adv. Particle Accelerator 37483 | -1/Command | Found Vortex Chain Reactor 37485 | -1/Command | Found Zero-point Reactor 37530 | -1/Command | Found Exp. EM Shield 38033 | -1/Command | Found Exp. Targeting Computer 38297 | -1/Command | X0-1V1 activates XOMVISION 38511 | -1/Command | X0-1V1 sent hostile G-73 Enforcer (x4) 38632 | -1/Command | Warped through subspace to slip node 38640 | -1/Command | Core integrity restored by X0-1V1 (+285) 38640 | -1/Command | Entered Access_0 38641 | -1/Access_0 | Sensed 3 artifacts in vicinity 38643 | -1/Access_0 | Met Architect 38646 | -1/Access_0 | Destroyed A8 38655 | -1/Access_0 | Architect warped through subspace 38691 | -1/Access_0 | Architect warped through subspace 38724 | -1/Access_0 | Architect warped through subspace 38753 | -1/Access_0 | Architect warped through subspace 38772 | -1/Access_0 | Architect warped through subspace 38795 | -1/Access_0 | X0-1V1 caused items to flee you 38796 | -1/Access_0 | Architect warped through subspace 38818 | -1/Access_0 | Architect warped through subspace 38843 | -1/Access_0 | Architect warped through subspace 38876 | -1/Access_0 | Architect warped through subspace 38901 | -1/Access_0 | A6 warped into view 38913 | -1/Access_0 | Architect warped through subspace 38925 | -1/Access_0 | Destroyed A6 38929 | -1/Access_0 | X0-1V1 sent you into danger 38943 | -1/Access_0 | Subspace Access Node disabled 38963 | -1/Access_0 | Architect warped through subspace 38980 | -1/Access_0 | Items stopped fleeing you 39003 | -1/Access_0 | Found Integrity Redistributor 39003 | -1/Access_0 | Used Integrity Redistributor, redistributed integrity from core (-318) 39010 | -1/Access_0 | Architect warped through subspace 39052 | -1/Access_0 | Architect warped through subspace 39087 | -1/Access_0 | Architect warped through subspace 39095 | -1/Access_0 | Core integrity restored by X0-1V1 (+228) 39120 | -1/Access_0 | Architect warped through subspace 39155 | -1/Access_0 | Architect warped through subspace 39186 | -1/Access_0 | Architect warped through subspace 39220 | -1/Access_0 | Architect warped through subspace 39231 | -1/Access_0 | Found Exp. Phase Shifter 39236 | -1/Access_0 | Found Exp. Weapon Cycler 39243 | -1/Access_0 | Architect warped through subspace 39268 | -1/Access_0 | Architect warped through subspace 39293 | -1/Access_0 | Architect warped through subspace 39309 | -1/Access_0 | Architect warped through subspace 39314 | -1/Access_0 | Subspace Access Node disabled 39328 | -1/Access_0 | Architect warped through subspace 39348 | -1/Access_0 | Architect warped through subspace 39367 | -1/Access_0 | Architect warped through subspace 39388 | -1/Access_0 | Architect warped through subspace 39399 | -1/Access_0 | X0-1V1 revealed exit location to -0/Surface 39413 | -1/Access_0 | Architect warped through subspace 39438 | -1/Access_0 | Architect warped through subspace 39474 | -1/Access_0 | Architect warped through subspace 39487 | -1/Access_0 | Subspace Access Node disabled 39506 | -1/Access_0 | Architect warped through subspace 39536 | -1/Access_0 | Architect warped through subspace 39564 | -1/Access_0 | X0-1V1 activates XOMVISION 39577 | -1/Access_0 | Architect warped through subspace 39616 | -1/Access_0 | Architect warped through subspace 39653 | -1/Access_0 | Architect warped through subspace 39681 | -1/Access_0 | Architect warped through subspace 39682 | -1/Access_0 | X0-1V1 sent hostile S-43 Plague (x4) 39709 | -1/Access_0 | Singularity Gate disabled 39718 | -1/Access_0 | Architect warped through subspace 39751 | -1/Access_0 | Architect warped through subspace 39783 | -1/Access_0 | X0-1V1 sent allied Mutant (x3) 39785 | -1/Access_0 | Architect warped through subspace 39801 | -1/Access_0 | Found Exp. Weapon Cycler 39813 | -1/Access_0 | Architect warped through subspace 39827 | -1/Access_0 | X0-1V1 sent you into danger 39831 | -1/Access_0 | Architect warped through subspace 39844 | -1/Access_0 | X0-1V1 vaporized surrounding terrain (radius 19) 39848 | -1/Access_0 | Architect warped through subspace 39859 | -1/Access_0 | Architect warped through subspace 39875 | -1/Access_0 | Architect warped through subspace 39885 | -1/Access_0 | Core integrity fell below 50% 39901 | -1/Access_0 | A4 warped into view 39920 | -1/Access_0 | Destroyed A4 39928 | -1/Access_0 | Architect warped through subspace 39928 | -1/Access_0 | X0-1V1 turns hostiles against one another 39948 | -1/Access_0 | Architect warped through subspace 39968 | -1/Access_0 | X0-1V1 sent allied X-87 Electro (x3) 39971 | -1/Access_0 | Subspace Access Node disabled 39984 | -1/Access_0 | Lost 3 parts (1p2u) 39984 | -1/Access_0 | Destroyed Architect 40007 | -1/Access_0 | Found Prototype Protection 40007 | -1/Access_0 | Identified Centrium Linked Plating 40016 | -1/Access_0 | Found Zero-point Reactor 40027 | -1/Access_0 | Extracted unknown sensor trigger ID from Architect's data core 40032 | -1/Access_0 | Found Hpw. Transdimensional Reconstructor 40319 | -1/Access_0 | Found Exp. Powered Armor 40416 | -1/Access_0 | Found Core Expander 40421 | -1/Access_0 | Core integrity restored by X0-1V1 (+270) 40458 | -1/Access_0 | Found Sigix Corpse 40545 | -1/Access_0 | X0-1V1 vaporized surrounding terrain (radius 18) 40762 | -1/Access_0 | Allies destroyed A2 40776 | -1/Access_0 | Extracted Singularity Gate Test 138-C access codes from A2's data core 40912 | -1/Access_0 | A3 warped into view 40923 | -1/Access_0 | Destroyed A3 40967 | -1/Access_0 | Found Prototype Device 40967 | -1/Access_0 | Identified ST Field Compressor 41007 | -1/Access_0 | Found Prototype Processor 41007 | -1/Access_0 | Identified Exp. Terrain Scan Processor 41099 | -1/Access_0 | X0-1V1 activates XOMVISION 41284 | -1/Access_0 | X0-1V1 vaporized surrounding terrain (radius 20) 41508 | -1/Access_0 | Found Hpw. Transdimensional Reconstructor 41508 | -1/Access_0 | Warped through subspace to slip node 41515 | -1/Access_0 | Warped through subspace to slip node 41518 | -1/Access_0 | Warped through subspace to slip node 41528 | *** | Heading to fleet! Last Messages --------------- [REDACTED] >>Record "Log L.RSL58V7F" [REDACTED] 41234_ X0-1V1: "Did you know you're leaking matter?" (-150 matter capacity) 41276_ X0-1V1 blurs the world around you (-4 sight range). X0-1V1's Piety Tracker suddenly appears amidst shimmering waves of color. Surrounding terrain vaporized. 41284_ X0-1V1: "Learned that one from the Sigix." 41308_ System corrupted: FCS attempts to trigger Hvy. Quantum Rifle. 41308_ System corrupted: Hvy. Quantum Rifle misfires. X0-1V1's Piety Tracker suddenly appears amidst shimmering waves of color. 41354_ Sensor data returns to normal. X0-1V1's Piety Tracker suddenly appears amidst shimmering waves of color. 41503_ Workstation disabled. 41508_ Acquired Hpw. Transdimensional Reconstructor. 41508_ Warped through subspace, drawn to slip node. 41509_ Acquired Graphene Brace. 41515_ Warped through subspace, drawn to slip node. X0-1V1's Piety Tracker suddenly appears amidst shimmering waves of color. Map ----- +----------------------------------------------------+ | | | | | | | | | | | | | | | | | | | | | | | | | | | | | | | | | ?????????????????????????????????????????????????? | | ?????????????????????????????????????????????????? | | ?????????????????????????????????????????????????? | | ?????????????????????????????????????????????????? | | ?????????????????????????????????????????????????? | | ?????????????????????????????????????????????????? | | ????????????????????????###??????????????????????? | | ???????????????????????## ##?????????????????????? | | ???????????????????????# #?????????????????????? | | ???????????????????????# @ #?????????????????????? | | ??????????????????????## #?????????????????????? | | ??????????????????????# #?????????????????????? | | ??????????????????????# ##?????????????????????? | | ??????????????????????## #?????????????????????? | | ??????????????????????# #?????????????????????? | | ??????????????????????# ##?????????????????????? | | ??????????????????????#